{"text_format":"1","workbook":"xlsx","n_sheets":6,"sheets":["EOI Initial","EOI Final","Declaration","SME Guidance","SIC","Sheet1"],"not_rendered":{"charts":0,"images":1,"macros":1,"external_links":0,"defined_names":120,"comments":0,"pivot_tables":0},"unopened":[],"bounds":{"document_bytes":16777216,"sheet_cells":100000,"rows_first":2000,"rows_last":500,"rows_between":2000,"halvings":0,"cell_chars":16384,"cell_head_chars":4096},"cells_cut":0,"cells_raw":0,"read":"whole","date_system":"1900"}

{"sheet":"EOI Initial","index":0,"n_rows":55,"n_cols":9,"rows_kept":55,"cut":false,"hidden":false,"merged":[[31,4,31,5],[29,0,29,2],[29,4,29,5],[53,0,53,6],[54,0,54,6],[5,4,5,6],[17,4,17,6],[18,0,18,3],[18,4,18,6],[42,5,42,6],[42,0,42,3],[52,0,52,6],[7,4,7,6],[8,4,8,6],[9,4,9,6],[10,4,10,6],[11,0,11,3],[11,4,11,6],[5,0,5,3],[0,0,0,6],[1,0,1,6],[12,0,12,2],[12,4,12,6],[13,0,16,2],[13,4,13,6],[14,4,14,6],[15,4,15,6],[16,4,16,6],[2,0,2,6],[3,0,3,6],[4,0,4,3],[4,4,4,6],[6,0,6,2],[6,4,6,6],[7,0,10,2],[17,0,17,3],[19,0,19,3],[19,4,19,6],[38,4,38,6],[33,0,33,5],[34,0,34,1],[34,5,34,6],[20,0,20,3],[20,4,20,6],[21,0,21,3],[21,4,21,6],[22,0,22,3],[22,4,22,6],[23,0,23,3],[23,4,23,6],[24,0,24,3],[24,4,24,6],[25,0,25,3],[25,4,25,6],[35,0,35,1],[35,2,35,6],[34,2,34,4],[27,0,27,2],[32,0,32,2],[30,0,30,2],[31,0,31,2],[26,0,26,6],[27,4,27,5],[32,4,32,5],[28,0,28,2],[28,4,28,5],[30,4,30,5],[39,0,39,3],[39,4,39,6],[36,0,36,3],[36,4,36,6],[37,2,37,3],[38,0,38,3],[50,0,50,6],[40,5,40,6],[48,0,48,6],[49,0,49,6],[51,0,51,6],[44,0,44,6],[45,0,45,6],[46,0,46,6],[47,0,47,6],[41,0,41,1],[40,0,40,3],[43,0,43,6]]}
[null,null,null,null,null,null,null,null,"Comment"]
["Expression of Interest - AeroSpace Cornwall 2.0"]
["This is to ensure that you receive the very best and most relevant service from the business/organisation support network in Cornwall and that you do not have to repeatedly provide the same basic information to each business/organisation support service provider.",null,null,null,null,null,null,0]
["Initial Eligibility Check",null,null,null,null,null,null,0]
["Trading name ",null,null,null,null,null,null,{"$f":"#REF!","v":{"$error":"#REF!"}}]
["Organisation/Legal name if different from trading name",null,null,null,null,null,null,{"$f":"#REF!","v":{"$error":"#REF!"}}]
["Correspondence/operating address ",null,null,"Line 1",null,null,null,{"$f":"#REF!","v":{"$error":"#REF!"}}]
[null,null,null,"Line 2",null,null,null,{"$f":"#REF!","v":{"$error":"#REF!"}}]
[null,null,null,"Town",null,null,null,{"$f":"#REF!","v":{"$error":"#REF!"}}]
[null,null,null,"County",null,null,null,{"$f":"#REF!","v":{"$error":"#REF!"}}]
[null,null,null,"Postcode",null,null,null,{"$f":"#REF!","v":{"$error":"#REF!"}}]
["Is this address also your registered address",null,null,null,null,null,null,{"$f":"#REF!","v":{"$error":"#REF!"}}]
["Registered address ",null,null,"Line 1",null,null,null,{"$f":"#REF!","v":{"$error":"#REF!"}},"Companies House"]
[null,null,null,"Line 2",null,null,null,{"$f":"#REF!","v":{"$error":"#REF!"}}]
[null,null,null,"Town",null,null,null,{"$f":"#REF!","v":{"$error":"#REF!"}}]
[null,null,null,"County",null,null,null,{"$f":"#REF!&\":\"&#REF!","v":{"$error":"#REF!"}}]
[null,null,null,"Postcode",null,null,null,{"$f":"#REF!&\":\"&#REF!","v":{"$error":"#REF!"}}]
["Contact telephone number (without spaces)"]
["Contact email address"]
["Web address"]
["Type of business/organisation",null,null,null,"Please Select",null,null,{"$f":"#REF!&\":\"&#REF!","v":{"$error":"#REF!"}}]
["Other"]
["Companies House Registration number (if applicable)"]
["Date of registration or incorporation:"]
["If you are a partnership please select from these options",null,null,null,null,null,null,{"$f":"#REF!&\":\"&#REF!","v":{"$error":"#REF!"}}]
["If ‘other’ please specify:"]
["Shareholders: Please provide details of the shareholders of your company - name and % share allocation. Do you have any of the sharehoders have shares in any other companies?  On rare occasions other shareholdings can tip the overall size of business into the non-SME category under EU classification"]
["Name",null,null,"Percentage","Name of the company they own other shares in",null,"Percentage"]
[]
[]
[]
[]
[]
["What is your company SIC code (as per your Companies House entry).  If you do not have a SIC code, Sole Traders for example, please enter one based on the list supplied in the SIC Tab",null,null,null,null,null,null,{"$f":"#REF!","v":{"$error":"#REF!"}}]
["Business sector",null,{"$f":"IFERROR(VLOOKUP(G34,SIC!$A$2:$C$805,2,FALSE),\"\")","v":""},null,null,{"$f":"IFERROR(VLOOKUP(G34,SIC!$A$2:D$805,4,FALSE),\"\")","v":""},null,{"$f":"C35","v":""}]
["Business Description",null,{"$f":"IFERROR(VLOOKUP(G34,SIC!$A$2:$C$805,3,FALSE),\"\")","v":""},null,null,null,null,{"$f":"#REF!","v":{"$error":"#REF!"}}]
["SME Check completed:",null,null,null,"Please select",null,null,null,"See SME guidance"]
[" FY END",null,"Last Accounts",null,null,"Draft Accounts",null,null,"Draft accounts are required if the last accounts are older than 15 months"]
["Share Capital ",null,null,null,null,null,null,null,"From Balance Sheet"]
["Shareholders' or Member's funds /Profit and loss account",null,null,null,null,null,null,null,"From Balance Sheet, Shareholder funds plus any share premium amount"]
["Undertaking In Difficulty for a limited company*",null,null,null,{"$f":"IFERROR(E40/E39,\"NA\")","v":"NA"},{"$f":"IF(E37=\"Yes Under 3 Years\",\"No UID Required\",IF(E41=\"NA\",\"\",IF(E41<-0.5,\"Fail\",\"Pass\")))","v":""}]
[{"$f":"NOW()","v":"2020-05-14T11:15:13.570"}]
["Undertaking In Difficulty for a non-limited company*",null,null,null,{"$f":"IF(OR(F43=\"Please Select\",F43=\"\"),\"NA\",\"\")","v":""},"NA"]
[]
["* “undertaking in difficulty’ means an undertaking in respect of which at least one of the following circumstances occurs:"]
["(a) In the case of a limited liability company (other than an SME that has been in existence for less than three years or, for the purposes of eligibility for risk finance aid, an SME within 7 years from its first commercial sale that qualifies for risk finance investments following due diligence by the selected financial intermediary), where more than half of its subscribed share capital has disappeared as a result of accumulated losses. This is the case when deduction of accumulated losses from reserves (and all other elements generally considered as part of the own funds of the company) leads to a negative cumulative amount that exceeds half of the subscribed share capital. For the purposes of this provision, ‘limited liability company’ refers in particular to the types of company mentioned in Annex I of Directive 2013/34/EU (1) and ‘share capital’ includes, where relevant, any share premium."]
["(b) In the case of a company where at least some members have unlimited liability for the debt of the company (other than an SME that has been in existence for less than three years or, for the purposes of eligibility for risk finance aid, an SME within 7 years from its first commercial sale that qualifies for risk finance investments following due diligence by the selected financial intermediary), where more than half of its capital as shown in the company accounts has disappeared as a result of accumulated losses. For the purposes of this provision, ‘a company where at least some members have unlimited liability for the debt of the company ‘refers in particular to the types of company mentioned in Annex II of Directive 2013/34/EU."]
["(c) Where the undertaking is subject to collective insolvency proceedings or fulfils the criteria under its domestic law for being placed in collective insolvency proceedings at the request of its creditors."]
["(d) Where the undertaking has received rescue aid and has not yet reimbursed the loan or terminated the guarantee, or has received restructuring aid and is still subject to a restructuring plan."]
["(e) In the case of an undertaking that is not an SME, where, for the past two years:\n(1) the undertaking's book debt to equity ratio has been greater than 7,5 and\n(2) the undertaking's EBITDA interest coverage ratio has been below 1,0.”"]
["Data Sharing:",null,null,null,null,null,null,{"$f":"#REF!","v":{"$error":"#REF!"}}]
["We will hold the information that you provide to us confidentially on our client relationship management system (CRM) and our website services provider. We will share certain elements of this information with the Cornwall & Isles of Scilly Growth Hub and with other business/organisation support service providers (as appropriate to your needs). The information will be collected and processed and held securely in accordance with the principles of the UK Data Protection Legislation and the General Data Protection Regulation (GDPR) and any other directly applicable European Union legislation relating to privacy. Our Privacy Statement is available on our website www.aerospacecornwall.co.uk  or can be supplied by email or post if requested. ",null,null,null,null,null,null,{"$f":"#REF!","v":{"$error":"#REF!"}}]
["We will not disclose the substance of our conversations/dealings with you unless you authorise us to do so. We will only disclose information so that our partner business support organisations are fully aware of your circumstances and needs. We will retain your details until 31 December 2033 as this is a requirement under the contract we have with our funders MHCLG. All personal information held by the AeroSpace Cornwall Programme is held safely in a secure environment",null,null,null,null,null,null,{"$f":"#REF!","v":{"$error":"#REF!"}}]
["Signposting:",null,null,null,null,null,null,0]
["The information that you provide will be used for assessing and where appropriate monitoring your project and evaluating the scheme.  It will also be shared with the Cornwall and the Isles of Scilly Growth Hub (CIOS Growth Hub) and/or the Cornwall and the Isles of Scilly Growth Hub (CIOS Skills Hub) if your proposed activity fits within the scope of other existing programmes and/or involves business or skills development. It will not be released outside of the scheme and the CIOS Growth Hub and CIOS Skills Hub other than where required by the terms of the contract with our funders. ",null,null,null,null,null,null,{"$f":"#REF!","v":{"$error":"#REF!"}}]

{"sheet":"EOI Final","index":1,"n_rows":30,"n_cols":7,"rows_kept":30,"cut":false,"hidden":false,"merged":[[29,0,29,1],[22,0,22,6],[23,0,23,6],[2,4,2,6],[25,0,25,2],[25,4,25,5],[26,0,26,2],[26,4,26,5],[28,0,28,6],[5,0,5,5],[6,0,6,5],[12,4,12,5],[4,0,4,2],[4,4,4,5],[14,4,14,5],[24,0,24,6],[0,0,0,6],[3,4,3,6],[2,0,2,3],[3,0,3,3],[1,0,1,6],[19,4,19,5],[7,0,7,6],[17,0,17,5],[16,4,16,5],[27,0,27,6],[20,0,20,6],[21,0,21,6],[19,0,19,2],[18,0,18,6],[15,4,15,5],[11,3,11,5],[12,0,12,2],[13,0,13,2],[13,4,13,5]]}
[]
["Final Eligibility Check - AeroSpace Cornwall 2.0"]
["Number of  full time employees (i.e. work a minimum of 36 hours a week)"]
["Number of  part time employees (i.e. work less than a minimum of 36 hours a week)"]
["Are you VAT Registered?",null,null,"Select option","If Yes please provide VAT Number:"]
["Annual R&D spend in last complete financial year (£)"]
["Number of product and process innovations in last three financial years"]
["How many of your current workforce fall into the following equality categories?"]
["Age ","16-24",null,"25-29",null,"30-34"]
[null,"35-39",null,"40-44",null,"45-49"]
[null,"50-54",null,"55-59",null,"60-64"]
[null,"65+",null,"Prefer not to say"]
["Female",null,null,null,"Male"]
["Ethnic grouping",null,null,null,"Select option"]
[null,null,null,null,"Select option"]
[null,null,null,null,"Select option"]
[null,null,null,null,"Select option"]
["Disability (physical, learning, mental health condition)"]
["Does your business/organisation hold the following current policies? They must be signed and dated within the last 12 months"]
["Environmental/Sustainability Development",null,null,null,"Equal Opportunities/Equality and Diversity "]
["As a requirement of the funding, applicants are required to show that they are actively taking responsibility for their project and the effects it may have. For ERDF you must have policies that address Environmental and Sustainability Development and Equality and Diversity; please confirm that you have these policies or that they will be in place if you submit a full application. (They must be signed and dated within the last 12 months)."]
["Samples of both policy documents and useful links can be found at:  https://www.ciosgrowthhub.com/"]
["Environment and Sustainability:  https://www.ciosgrowthhub.com/skills-toolkit/environment-and-sustainability/"]
["Equality and Diversity: https://www.ciosgrowthhub.com/skills-toolkit/equality-and-diversity/"]
["Have any of the business principals been:"]
["disqualified as director?",null,null,"Select option","listed on the individual insolvency register?",null,"Select option"]
["subject to bankruptcy proceedings?",null,null,"Select option","subject to a county court judgement?",null,"Select option"]
["If you answer ‘yes’ to any part of this question please provide details below."]
[]
[{"$f":"NOW()","v":"2020-05-14T11:15:13.570"}]

{"sheet":"Declaration","index":2,"n_rows":28,"n_cols":7,"rows_kept":28,"cut":false,"hidden":false,"merged":[[15,7,19,7],[15,0,15,6],[16,0,16,6],[17,0,17,2],[10,0,10,4],[0,0,0,6],[1,0,1,6],[14,0,14,6],[2,0,2,6],[3,0,3,6],[5,0,5,4],[6,0,6,5],[9,0,9,4],[12,0,12,6],[13,0,13,6],[27,0,27,2],[27,3,27,6],[26,0,26,2],[26,3,26,6],[22,0,22,6],[24,0,24,2],[24,3,24,6],[25,0,25,2],[25,3,25,6],[20,0,20,6],[21,0,21,6],[23,0,23,6],[18,0,18,2],[19,0,19,2]]}
[]
["Self Declaration - AeroSpace Cornwall 2.0"]
["SME declaration (see SME Guidance):"]
["1 confirm that as the applicant organisation I am compliant with:"]
["SMALL"]
["I have a headcount of fewer than 50 employees; ",null,null,null,null,null,"Select option"]
["I have a turnover in the last full financial year of €10m or less;           ",null,null,null,null,null,"Select option"]
[null,null,"OR"]
["MEDIUM"]
["I have a headcount of fewer than 250 employees; ",null,null,null,null,null,"Select option"]
["I have a turnover in the last full financial year of €50m or less;",null,null,null,null,null,"Select option"]
["I have a balance sheet in the last full financial year of €43m or less; ",null,null,null,null,null,"Select option"]
["Only for enterprises trading for at least 3 years: Undertaking in difficulty declaration "]
["I, the undersigned, declare that my organisation is not in difficulty in the meaning of the ETC Regulation (Regulation (EU) No. 1299/2013, Art. 1(3) and the European Regional Development Fund (ERDF) Regulation (Regulation (EU) No. 1301/2013, Art. 3(3)).  \n"]
["State Aid declaration - de minimis"]
["Under European Commission regulation 1407/2013 (de minimis aid regulation), the  European Commission rules prohibit any undertaking from receiving more than €200,000 euros de minimis aid over a rolling three-year period. Any de minimis aid granted over the €200,000 limit may be subject to repayment with interest. Potentially any assistance you may have received from a public body might be a de minimis aid.  This could be from central, regional, devolved governments or agencies or a local council. If you have received any de minimis aid over the last three years (from any source) please provide theh details of the dates and amounts of aid received below."]
["Declaration - I declare that the amount of ‘De Minimis’ aid received by the company/organisation and any linked company/organisation over the last three rolling years is:"]
[null,null,null,"Year 1","Year 2","Year 3","Total"]
["Specify period (this will update when you complete the Date Field at the end of the application)",null,null,{"$f":"IFERROR(TEXT(EDATE(D28,-35),\"mmm-yy\")&\"-\"&TEXT(EDATE(D28,-24),\"mmm-yy\"),\"\")","v":""},{"$f":"IFERROR(TEXT(EDATE(D28,-23),\"mmm-yy\")&\"-\"&TEXT(EDATE(D28,-12),\"mmm-yy\"),\"\")","v":""},{"$f":"IFERROR(TEXT(EDATE(D28,-11),\"mmm-yy\")&\" - \"&TEXT(D28,\"mmm-yy\"),\"\")","v":""}]
["Value of aid received",null,null,0,0,0,{"$f":"D20+E20+F20","v":0}]
["Need for grant declaration"]
["ERDF is a fund of last resort. Notwithstanding my requirement for retaining operating capital and company policy, I have considered other funding sources and I have been either unsuccessful or ineligible.  The AeroSpace Cornwall grant is the most appropriate fund to meet my gap funding requirement.\n"]
["Applicant declaration:"]
["I accept and acknowledge, by typing my name below I am certifying that all information provided within this document and any supporting AeroSpace Cornwall documents I have provided are correct.  "]
["Name:"]
["Position:"]
["Organisation:"]
["Date:"]

{"sheet":"SME Guidance","index":3,"n_rows":30,"n_cols":7,"rows_kept":30,"cut":false,"hidden":false,"merged":[[0,0,0,7],[6,0,6,7],[1,0,1,7],[2,0,2,7],[3,0,3,7],[4,0,4,7],[5,0,5,7],[7,0,7,7],[8,0,8,7],[9,0,9,1],[9,2,9,3],[9,4,9,5],[9,6,9,7],[10,0,10,1],[10,2,10,3],[10,4,10,7],[11,0,11,1],[11,2,11,3],[11,4,11,7],[19,0,19,7],[12,0,12,1],[12,2,12,3],[12,4,12,7],[13,0,13,1],[13,2,13,3],[13,4,13,7],[14,0,14,7],[15,0,15,7],[16,0,16,7],[17,0,17,7],[18,0,18,7],[26,0,26,7],[27,0,27,7],[28,0,28,7],[29,0,29,7],[20,0,20,7],[21,0,21,7],[22,0,22,7],[23,0,23,7],[24,0,24,7],[25,0,25,7]]}
[]
["SME Status Notes"]
["1.  To be considered a SME, you must be engaged in economic activity:"]
["Economic Activity\nA legal entity is considered to be engaged in an economic activity, if it's involved in any form of trade or activity carried out for remuneration or financial interest in a given market. In general, any activity consisting in offering goods or services on a given market is considered as an 'economic activity'.\nThe following activities are not considered as economic activities:\n(1) activities for which there is no financial offset;\n(2) activities for which there is no given/direct market;\n(3) activities for which the income generated is not distinct from the personal\nincome of its members or shareholders\n"]
["2.  Headcount"]
["\nThe headcount is expressed in the number of annual work units (AWU), i.e. the number of persons who worked fulltime within a given enterprise (or on its behalf) during the entire year under consideration. The work of persons who have \n(i) not worked the full year \n(ii) worked part-time and \n(iii) the work of seasonal workers \nare counted as fractions of AWU. \nThe duration of maternity or parental leaves is not counted.\n"]
["The staff consists of:\n(a) employees;\n(b) persons working for the enterprise being subordinated to it and deemed to be employees under national law;\n(c) owner-managers;\n(d) partners engaging in a regular activity in the enterprise and benefiting from\nfinancial advantages from the enterprise.\n\nNote: Apprentices or students engaged in vocational training with an\napprenticeship or vocational training contract are not included as staff\n"]
["The headcount (Full Time Equivalents - FTEs) for a company are detailed in the accounts of a company filed with Companies House.  For the applicant a current count is required; for Linked and Partner enterprises the data in the last set of accounts can be used."]
["3. Thresholds"]
["Enterprise Category",null,"Headcount",null,"Annual Turnover",null,"Annual Balance Sheet Total"]
["Medium",null,"<250",null,"≤€  50M           or         ≤€  43M"]
["Small",null,"< 50",null,"≤€  10M           or         ≤€  10M"]
["Micro",null,"< 10",null,"≤€    2M           or         ≤€    2M"]
["HMRC's definition of a Micro-entity",null,"< 10",null,"≤£632K            or         ≤£316K"]
["FOR THE BASIS OF THIS SME STATUS CHECK, THE BALANCE SHEET TOTALS WILL BE USED (SEE BELOW).  SHOULD THE BALANCE SHEET GET WITHIN 5% OF THE THRESHOLD BETWEEN  SMALL-MEDIUM (WHERE THIS HAS AN IMPACT ON GRANT INTERVENTION RATE) OR WHERE IT NEARS/EXCEEDS THE MEDIUM THRESHOLD, YOU SHOULD CONTACT AEROSPACE CORNWALL"]
["4.  Balance Sheet total\n\n"]
["In the qualification conditions for small company and medium-sized company exemptions, the balance-sheet total is the total of fixed and current assets before deduction of current and long-term liabilities and can be found in the accounts filed with Companies House"]
["5.  Investors"]
["Investors can belong to one of the following categories:\n\na. Public investment corporations, venture capital companies, individuals or group of individuals with a regular venture capital investment activity who invest equity capital in unquoted businesses (\"business angels\"). Please note that the total investment of business angels in one enterprise cannot exceed EUR 1,250,000;\nb. Universities and non-profit research centres;\nc. Institutional investors, including regional development funds;\nd. Autonomous local authorities with an annual budget of less than EUR 10 million and less than 5000 inhabitant\n"]
["6.  Supporting Documents from Companies House"]
["6.1  Overview "]
["6.2  From the Filling History:"]
["6.2.1   Annual return and/or Confirmation Statement with updates and/or Change in PSC - this provides the shareholders information.  Note only voting shares count in the assessment."]
["6.2.2   Latest set of accounts"]
["6.3  From People"]
["6.3.1   Examine the shareholders who are directors listed here to determine other company relationships"]
["6.3.2   See  6.2.1"]
["6.4  Conduct a search for any other shareholder not listed in 6.3.1 to determine any other company relationships"]
["7.  New Enterprises"]
["If the company is newly established and does not have any closed accounts yet, then the status is based on the estimated figures taken from the first year's business plan (the turnover must be positive)."]

{"sheet":"SIC","index":4,"n_rows":804,"n_cols":4,"rows_kept":804,"cut":false,"hidden":true,"merged":[]}
["SIC Code","Sector","Activity Description"]
[1110,"A: agriculture, forestry & fishing","Growing of cereals (except rice), leguminous crops and oil seeds","AeroSpace Cornwall Team to verify eligibility"]
[1120,"A: agriculture, forestry & fishing","Growing of rice","AeroSpace Cornwall Team to verify eligibility"]
[1130,"A: agriculture, forestry & fishing","Growing of vegetables and melons, roots and tubers","AeroSpace Cornwall Team to verify eligibility"]
[1140,"A: agriculture, forestry & fishing","Growing of sugar cane","AeroSpace Cornwall Team to verify eligibility"]
[1150,"A: agriculture, forestry & fishing","Growing of tobacco","AeroSpace Cornwall Team to verify eligibility"]
[1160,"A: agriculture, forestry & fishing","Growing of fibre crops","AeroSpace Cornwall Team to verify eligibility"]
[1190,"A: agriculture, forestry & fishing","Growing of other non-perennial crops","AeroSpace Cornwall Team to verify eligibility"]
[1210,"A: agriculture, forestry & fishing","Growing of grapes","AeroSpace Cornwall Team to verify eligibility"]
[1220,"A: agriculture, forestry & fishing","Growing of tropical and subtropical fruits","AeroSpace Cornwall Team to verify eligibility"]
[1230,"A: agriculture, forestry & fishing","Growing of citrus fruits","AeroSpace Cornwall Team to verify eligibility"]
[1240,"A: agriculture, forestry & fishing","Growing of pome fruits and stone fruits","AeroSpace Cornwall Team to verify eligibility"]
[1250,"A: agriculture, forestry & fishing","Growing of other tree and bush fruits and nuts","AeroSpace Cornwall Team to verify eligibility"]
[1260,"A: agriculture, forestry & fishing","Growing of oleaginous fruits","AeroSpace Cornwall Team to verify eligibility"]
[1270,"A: agriculture, forestry & fishing","Growing of beverage crops","AeroSpace Cornwall Team to verify eligibility"]
[1280,"A: agriculture, forestry & fishing","Growing of spices, aromatic, drug and pharmaceutical crops","AeroSpace Cornwall Team to verify eligibility"]
[1290,"A: agriculture, forestry & fishing","Growing of other perennial crops","AeroSpace Cornwall Team to verify eligibility"]
[1300,"A: agriculture, forestry & fishing","Plant propagation","AeroSpace Cornwall Team to verify eligibility"]
[1410,"A: agriculture, forestry & fishing","Raising of dairy cattle","AeroSpace Cornwall Team to verify eligibility"]
[1420,"A: agriculture, forestry & fishing","Raising of other cattle and buffaloes","AeroSpace Cornwall Team to verify eligibility"]
[1430,"A: agriculture, forestry & fishing","Raising of horses and other equines","AeroSpace Cornwall Team to verify eligibility"]
[1440,"A: agriculture, forestry & fishing","Raising of camels and camelids","AeroSpace Cornwall Team to verify eligibility"]
[1450,"A: agriculture, forestry & fishing","Raising of sheep and goats","AeroSpace Cornwall Team to verify eligibility"]
[1460,"A: agriculture, forestry & fishing","Raising of swine/pigs","AeroSpace Cornwall Team to verify eligibility"]
[1470,"A: agriculture, forestry & fishing","Raising of poultry","AeroSpace Cornwall Team to verify eligibility"]
[1490,"A: agriculture, forestry & fishing","Raising of other animals","AeroSpace Cornwall Team to verify eligibility"]
[1500,"A: agriculture, forestry & fishing","Mixed farming","AeroSpace Cornwall Team to verify eligibility"]
[1610,"A: agriculture, forestry & fishing","Support activities for crop production","AeroSpace Cornwall Team to verify eligibility"]
[162,"A: agriculture, forestry & fishing","Support activities for animal production","AeroSpace Cornwall Team to verify eligibility"]
[1621,"A: agriculture, forestry & fishing","Farm animal boarding and care","AeroSpace Cornwall Team to verify eligibility"]
[1629,"A: agriculture, forestry & fishing","Support activities for animal production (other than farm animal boarding and care) nec","AeroSpace Cornwall Team to verify eligibility"]
[1630,"A: agriculture, forestry & fishing","Post-harvest crop activities","AeroSpace Cornwall Team to verify eligibility"]
[1640,"A: agriculture, forestry & fishing","Seed processing for propagation","AeroSpace Cornwall Team to verify eligibility"]
[1700,"A: agriculture, forestry & fishing","Hunting, trapping and related service activities","AeroSpace Cornwall Team to verify eligibility"]
[2100,"A: agriculture, forestry & fishing","Silviculture and other forestry activities","AeroSpace Cornwall Team to verify eligibility"]
[2200,"A: agriculture, forestry & fishing","Logging","AeroSpace Cornwall Team to verify eligibility"]
[2300,"A: agriculture, forestry & fishing","Gathering of wild growing non-wood products","AeroSpace Cornwall Team to verify eligibility"]
[2400,"A: agriculture, forestry & fishing","Support services to forestry","AeroSpace Cornwall Team to verify eligibility"]
[3110,"A: agriculture, forestry & fishing","Marine fishing","AeroSpace Cornwall Team to verify eligibility"]
[3120,"A: agriculture, forestry & fishing","Freshwater fishing","AeroSpace Cornwall Team to verify eligibility"]
[3210,"A: agriculture, forestry & fishing","Marine aquaculture","AeroSpace Cornwall Team to verify eligibility"]
[3220,"A: agriculture, forestry & fishing","Freshwater aquaculture","AeroSpace Cornwall Team to verify eligibility"]
[510,"B: mining & quarrying","Mining of hard coal","Proceed to the next question"]
[5101,"B: mining & quarrying","Mining of hard coal from deep coal mines (underground mining)","Proceed to the next question"]
[5102,"B: mining & quarrying","Mining of hard coal from open cast coal working (surface mining)","Proceed to the next question"]
[5200,"B: mining & quarrying","Mining of lignite","Proceed to the next question"]
[6100,"B: mining & quarrying","Extraction of crude petroleum","Proceed to the next question"]
[6200,"B: mining & quarrying","Extraction of natural gas","Proceed to the next question"]
[7100,"B: mining & quarrying","Mining of iron ores","Proceed to the next question"]
[7210,"B: mining & quarrying","Mining of uranium and thorium ores","Proceed to the next question"]
[7290,"B: mining & quarrying","Mining of other non-ferrous metal ores","Proceed to the next question"]
[8110,"B: mining & quarrying","Quarrying of ornamental and building stone, limestone, gypsum, chalk and slate","Proceed to the next question"]
[8120,"B: mining & quarrying","Operation of gravel and sand pits; mining of clays and kaolin","Proceed to the next question"]
[8910,"B: mining & quarrying","Mining of chemical and fertiliser minerals","Proceed to the next question"]
[8920,"B: mining & quarrying","Extraction of peat","Proceed to the next question"]
[8930,"B: mining & quarrying","Extraction of salt","Proceed to the next question"]
[8990,"B: mining & quarrying","Other mining and quarrying nec","Proceed to the next question"]
[9100,"B: mining & quarrying","Support activities for petroleum and natural gas extraction","Proceed to the next question"]
[9900,"B: mining & quarrying","Support activities for other mining and quarrying","AeroSpace Cornwall Team to verify eligibility"]
[10110,"C: manufacturing","Processing and preserving of meat","AeroSpace Cornwall Team to verify eligibility"]
[10120,"C: manufacturing","Processing and preserving of poultry meat","AeroSpace Cornwall Team to verify eligibility"]
[10130,"C: manufacturing","Production of meat and poultry meat products","AeroSpace Cornwall Team to verify eligibility"]
[10200,"C: manufacturing","Processing and preserving of fish, crustaceans and molluscs","AeroSpace Cornwall Team to verify eligibility"]
[10310,"C: manufacturing","Processing and preserving of potatoes","AeroSpace Cornwall Team to verify eligibility"]
[10320,"C: manufacturing","Manufacture of fruit and vegetable juice","AeroSpace Cornwall Team to verify eligibility"]
[10390,"C: manufacturing","Other processing and preserving of fruit and vegetables","AeroSpace Cornwall Team to verify eligibility"]
[10410,"C: manufacturing","Manufacture of oils and fats","AeroSpace Cornwall Team to verify eligibility"]
[10420,"C: manufacturing","Manufacture of margarine and similar edible fats","AeroSpace Cornwall Team to verify eligibility"]
[10510,"C: manufacturing","Operation of dairies and cheese making","AeroSpace Cornwall Team to verify eligibility"]
[10511,"C: manufacturing","Liquid milk and cream production","AeroSpace Cornwall Team to verify eligibility"]
[10512,"C: manufacturing","Butter and cheese production","AeroSpace Cornwall Team to verify eligibility"]
[10519,"C: manufacturing","Manufacture of milk products (other than liquid milk and cream, butter, cheese) nec","AeroSpace Cornwall Team to verify eligibility"]
[10520,"C: manufacturing","Manufacture of ice cream","AeroSpace Cornwall Team to verify eligibility"]
[10610,"C: manufacturing","Manufacture of grain mill products","AeroSpace Cornwall Team to verify eligibility"]
[10611,"C: manufacturing","Grain milling","AeroSpace Cornwall Team to verify eligibility"]
[10612,"C: manufacturing","Manufacture of breakfast cereals and cereals-based foods","AeroSpace Cornwall Team to verify eligibility"]
[10620,"C: manufacturing","Manufacture of starches and starch products","AeroSpace Cornwall Team to verify eligibility"]
[10710,"C: manufacturing","Manufacture of bread; manufacture of fresh pastry goods and cakes","AeroSpace Cornwall Team to verify eligibility"]
[10720,"C: manufacturing","Manufacture of rusks and biscuits; manufacture of preserved pastry goods and cakes","AeroSpace Cornwall Team to verify eligibility"]
[10730,"C: manufacturing","Manufacture of macaroni, noodles, couscous and similar farinaceous products","AeroSpace Cornwall Team to verify eligibility"]
[10810,"C: manufacturing","Manufacture of sugar","AeroSpace Cornwall Team to verify eligibility"]
[10820,"C: manufacturing","Manufacture of cocoa, chocolate and sugar confectionery","AeroSpace Cornwall Team to verify eligibility"]
[10821,"C: manufacturing","Manufacture of cocoa, and chocolate confectionery","AeroSpace Cornwall Team to verify eligibility"]
[10822,"C: manufacturing","Manufacture of sugar confectionery","AeroSpace Cornwall Team to verify eligibility"]
[10830,"C: manufacturing","Processing of tea and coffee","AeroSpace Cornwall Team to verify eligibility"]
[10831,"C: manufacturing","Tea processing","AeroSpace Cornwall Team to verify eligibility"]
[10832,"C: manufacturing","Production of coffee and coffee substitutes","AeroSpace Cornwall Team to verify eligibility"]
[10840,"C: manufacturing","Manufacture of condiments and seasonings","AeroSpace Cornwall Team to verify eligibility"]
[10850,"C: manufacturing","Manufacture of prepared meals and dishes","AeroSpace Cornwall Team to verify eligibility"]
[10860,"C: manufacturing","Manufacture of homogenised food preparations and dietetic food","AeroSpace Cornwall Team to verify eligibility"]
[10890,"C: manufacturing","Manufacture of other food products nec","AeroSpace Cornwall Team to verify eligibility"]
[11010,"C: manufacturing","Distilling, rectifying and blending of spirits","AeroSpace Cornwall Team to verify eligibility"]
[11020,"C: manufacturing","Manufacture of wine from grape","AeroSpace Cornwall Team to verify eligibility"]
[11030,"C: manufacturing","Manufacture of cider and other fruit wines","AeroSpace Cornwall Team to verify eligibility"]
[11040,"C: manufacturing","Manufacture of other non-distilled fermented beverages","AeroSpace Cornwall Team to verify eligibility"]
[11050,"C: manufacturing","Manufacture of beer","AeroSpace Cornwall Team to verify eligibility"]
[11060,"C: manufacturing","Manufacture of malt","AeroSpace Cornwall Team to verify eligibility"]
[12000,"C: manufacturing","Manufacture of tobacco products","AeroSpace Cornwall Team to verify eligibility"]
[13100,"C: manufacturing","Preparation and spinning of textile fibres","AeroSpace Cornwall Team to verify eligibility"]
[13200,"C: manufacturing","Weaving of textiles","AeroSpace Cornwall Team to verify eligibility"]
[13300,"C: manufacturing","Finishing of textiles","AeroSpace Cornwall Team to verify eligibility"]
[13910,"C: manufacturing","Manufacture of knitted and crocheted fabrics","AeroSpace Cornwall Team to verify eligibility"]
[13920,"C: manufacturing","Manufacture of made-up textile articles, except apparel","AeroSpace Cornwall Team to verify eligibility"]
[13921,"C: manufacturing","Manufacture of soft furnishings","AeroSpace Cornwall Team to verify eligibility"]
[13922,"C: manufacturing","Manufacture of canvas goods, sacks etc","AeroSpace Cornwall Team to verify eligibility"]
[13923,"C: manufacturing","Manufacture of household textiles (other than soft furnishings of 1392/1)","AeroSpace Cornwall Team to verify eligibility"]
[13930,"C: manufacturing","Manufacture of carpets and rugs","AeroSpace Cornwall Team to verify eligibility"]
[13931,"C: manufacturing","Manufacture of woven or tufted carpets and rugs","AeroSpace Cornwall Team to verify eligibility"]
[13939,"C: manufacturing","Manufacture of carpets and rugs (other than woven or tufted) nec","AeroSpace Cornwall Team to verify eligibility"]
[13940,"C: manufacturing","Manufacture of cordage, rope, twine and netting","AeroSpace Cornwall Team to verify eligibility"]
[13950,"C: manufacturing","Manufacture of non-wovens and articles made from non-wovens, except apparel","AeroSpace Cornwall Team to verify eligibility"]
[13960,"C: manufacturing","Manufacture of other technical and industrial textiles","AeroSpace Cornwall Team to verify eligibility"]
[13990,"C: manufacturing","Manufacture of other textiles nec","AeroSpace Cornwall Team to verify eligibility"]
[14110,"C: manufacturing","Manufacture of leather clothes","AeroSpace Cornwall Team to verify eligibility"]
[14120,"C: manufacturing","Manufacture of workwear","AeroSpace Cornwall Team to verify eligibility"]
[14130,"C: manufacturing","Manufacture of other outerwear","AeroSpace Cornwall Team to verify eligibility"]
[14131,"C: manufacturing","Manufacture of men's outerwear, other than leather clothes and workwear","AeroSpace Cornwall Team to verify eligibility"]
[14132,"C: manufacturing","Manufacture of women's outerwear, other than leather clothes and workwear","AeroSpace Cornwall Team to verify eligibility"]
[14140,"C: manufacturing","Manufacture of underwear","AeroSpace Cornwall Team to verify eligibility"]
[14141,"C: manufacturing","Manufacture of men's underwear","AeroSpace Cornwall Team to verify eligibility"]
[14142,"C: manufacturing","Manufacture of women's underwear","AeroSpace Cornwall Team to verify eligibility"]
[14190,"C: manufacturing","Manufacture of other wearing apparel and accessories","AeroSpace Cornwall Team to verify eligibility"]
[14200,"C: manufacturing","Manufacture of articles of fur","AeroSpace Cornwall Team to verify eligibility"]
[14310,"C: manufacturing","Manufacture of knitted and crocheted hosiery","AeroSpace Cornwall Team to verify eligibility"]
[14390,"C: manufacturing","Manufacture of other knitted and crocheted apparel","AeroSpace Cornwall Team to verify eligibility"]
[15110,"C: manufacturing","Tanning and dressing of leather; dressing and dyeing of fur","AeroSpace Cornwall Team to verify eligibility"]
[15120,"C: manufacturing","Manufacture of luggage, handbags and the like, saddlery and harness","AeroSpace Cornwall Team to verify eligibility"]
[15200,"C: manufacturing","Manufacture of footwear","AeroSpace Cornwall Team to verify eligibility"]
[16100,"C: manufacturing","Sawmilling and planing of wood","Proceed to the next question"]
[16210,"C: manufacturing","Manufacture of veneer sheets and wood-based panels","Proceed to the next question"]
[16220,"C: manufacturing","Manufacture of assembled parquet floors","Proceed to the next question"]
[16230,"C: manufacturing","Manufacture of other builders' carpentry and joinery","Proceed to the next question"]
[16240,"C: manufacturing","Manufacture of wooden containers","Proceed to the next question"]
[16290,"C: manufacturing","Manufacture of other products of wood; manufacture of articles of cork, straw and plaiting materials","Proceed to the next question"]
[17110,"C: manufacturing","Manufacture of pulp","Proceed to the next question"]
[17120,"C: manufacturing","Manufacture of paper and paperboard","Proceed to the next question"]
[17210,"C: manufacturing","Manufacture of corrugated paper and paperboard and of containers of paper and paperboard","Proceed to the next question"]
[17211,"C: manufacturing","Manufacture of corrugated paper and paperboard; manufacture of sacks and bags of paper","Proceed to the next question"]
[17219,"C: manufacturing","Manufacture of paper and paperboard containers other than sacks and bags","Proceed to the next question"]
[17220,"C: manufacturing","Manufacture of household and sanitary goods and of toilet requisites","Proceed to the next question"]
[17230,"C: manufacturing","Manufacture of paper stationery","Proceed to the next question"]
[17240,"C: manufacturing","Manufacture of wallpaper","Proceed to the next question"]
[17290,"C: manufacturing","Manufacture of other articles of paper and paperboard","Proceed to the next question"]
[18110,"C: manufacturing","Printing of newspapers","Proceed to the next question"]
[18120,"C: manufacturing","Other printing","Proceed to the next question"]
[18121,"C: manufacturing","Manufacture of printed labels","Proceed to the next question"]
[18129,"C: manufacturing","Printing (other than printing of newspapers and printing on labels and tags) nec","Proceed to the next question"]
[18130,"C: manufacturing","Pre-press and pre-media services","Proceed to the next question"]
[18140,"C: manufacturing","Binding and related services","Proceed to the next question"]
[18200,"C: manufacturing","Reproduction of recorded media","Proceed to the next question"]
[18201,"C: manufacturing","Reproduction of sound recording","Proceed to the next question"]
[18202,"C: manufacturing","Reproduction of video recording","Proceed to the next question"]
[18203,"C: manufacturing","Reproduction of computer media","Proceed to the next question"]
[19100,"C: manufacturing","Manufacture of coke oven products","Proceed to the next question"]
[19200,"C: manufacturing","Manufacture of refined petroleum products","Proceed to the next question"]
[19201,"C: manufacturing","Mineral oil refining","Proceed to the next question"]
[19209,"C: manufacturing","Other treatment of petroleum products (excluding mineral oil refining/petrochemicals manufacture)","Proceed to the next question"]
[20110,"C: manufacturing","Manufacture of industrial gases","Proceed to the next question"]
[20120,"C: manufacturing","Manufacture of dyes and pigments","Proceed to the next question"]
[20130,"C: manufacturing","Manufacture of other inorganic basic chemicals","Proceed to the next question"]
[20140,"C: manufacturing","Manufacture of other organic basic chemicals","Proceed to the next question"]
[20150,"C: manufacturing","Manufacture of fertilisers and nitrogen compounds","Proceed to the next question"]
[20160,"C: manufacturing","Manufacture of plastics in primary forms","Proceed to the next question"]
[20170,"C: manufacturing","Manufacture of synthetic rubber in primary forms","Proceed to the next question"]
[20200,"C: manufacturing","Manufacture of pesticides and other agrochemical products","Proceed to the next question"]
[20300,"C: manufacturing","Manufacture of paints, varnishes and similar coatings, printing ink and mastics","Proceed to the next question"]
[20301,"C: manufacturing","Manufacture of paints, varnishes and similar coatings, mastics and sealants","Proceed to the next question"]
[20302,"C: manufacturing","Manufacture of printing ink","Proceed to the next question"]
[20410,"C: manufacturing","Manufacture of soap and detergents, cleaning and polishing preparations","Proceed to the next question"]
[20411,"C: manufacturing","Manufacture of soap and detergents","Proceed to the next question"]
[20412,"C: manufacturing","Manufacture of cleaning and polishing preparations","Proceed to the next question"]
[20420,"C: manufacturing","Manufacture of perfumes and toilet preparations","Proceed to the next question"]
[20510,"C: manufacturing","Manufacture of explosives","Proceed to the next question"]
[20520,"C: manufacturing","Manufacture of glues","Proceed to the next question"]
[20530,"C: manufacturing","Manufacture of essential oils","Proceed to the next question"]
[20590,"C: manufacturing","Manufacture of other chemical products nec","Proceed to the next question"]
[20600,"C: manufacturing","Manufacture of man-made fibres","Proceed to the next question"]
[21100,"C: manufacturing","Manufacture of basic pharmaceutical products","Proceed to the next question"]
[21200,"C: manufacturing","Manufacture of pharmaceutical preparations","Proceed to the next question"]
[22110,"C: manufacturing","Manufacture of rubber tyres and tubes; retreading and rebuilding of rubber tyres","Proceed to the next question"]
[22190,"C: manufacturing","Manufacture of other rubber products","Proceed to the next question"]
[22210,"C: manufacturing","Manufacture of plastic plates, sheets, tubes and profiles","Proceed to the next question"]
[22220,"C: manufacturing","Manufacture of plastic packing goods","Proceed to the next question"]
[22230,"C: manufacturing","Manufacture of builders’ ware of plastic","Proceed to the next question"]
[22290,"C: manufacturing","Manufacture of other plastic products","Proceed to the next question"]
[23110,"C: manufacturing","Manufacture of flat glass","Proceed to the next question"]
[23120,"C: manufacturing","Shaping and processing of flat glass","Proceed to the next question"]
[23130,"C: manufacturing","Manufacture of hollow glass","Proceed to the next question"]
[23140,"C: manufacturing","Manufacture of glass fibres","Proceed to the next question"]
[23190,"C: manufacturing","Manufacture and processing of other glass, including technical glassware","Proceed to the next question"]
[23200,"C: manufacturing","Manufacture of refractory products","Proceed to the next question"]
[23310,"C: manufacturing","Manufacture of ceramic tiles and flags","Proceed to the next question"]
[23320,"C: manufacturing","Manufacture of bricks, tiles and construction products, in baked clay","Proceed to the next question"]
[23410,"C: manufacturing","Manufacture of ceramic household and ornamental articles","Proceed to the next question"]
[23420,"C: manufacturing","Manufacture of ceramic sanitary fixtures","Proceed to the next question"]
[23430,"C: manufacturing","Manufacture of ceramic insulators and insulating fittings","Proceed to the next question"]
[23440,"C: manufacturing","Manufacture of other technical ceramic products","Proceed to the next question"]
[23490,"C: manufacturing","Manufacture of other ceramic products","Proceed to the next question"]
[23510,"C: manufacturing","Manufacture of cement","Proceed to the next question"]
[23520,"C: manufacturing","Manufacture of lime and plaster","Proceed to the next question"]
[23610,"C: manufacturing","Manufacture of concrete products for construction purposes","Proceed to the next question"]
[23620,"C: manufacturing","Manufacture of plaster products for construction purposes","Proceed to the next question"]
[23630,"C: manufacturing","Manufacture of ready-mixed concrete","Proceed to the next question"]
[23640,"C: manufacturing","Manufacture of mortars","Proceed to the next question"]
[23650,"C: manufacturing","Manufacture of fibre cement","Proceed to the next question"]
[23690,"C: manufacturing","Manufacture of other articles of concrete, plaster and cement","Proceed to the next question"]
[23700,"C: manufacturing","Cutting, shaping and finishing of stone","Proceed to the next question"]
[23910,"C: manufacturing","Production of abrasive products","Proceed to the next question"]
[23990,"C: manufacturing","Manufacture of other non-metallic mineral products nec","Proceed to the next question"]
[24100,"C: manufacturing","Manufacture of basic iron and steel and of ferro-alloys","Proceed to the next question"]
[24200,"C: manufacturing","Manufacture of tubes, pipes, hollow profiles and related fittings, of steel","Proceed to the next question"]
[24310,"C: manufacturing","Cold drawing of bars","Proceed to the next question"]
[24320,"C: manufacturing","Cold rolling of narrow strip","Proceed to the next question"]
[24330,"C: manufacturing","Cold forming or folding","Proceed to the next question"]
[24340,"C: manufacturing","Cold drawing of wire","Proceed to the next question"]
[24410,"C: manufacturing","Precious metals production","Proceed to the next question"]
[24420,"C: manufacturing","Aluminium production","Proceed to the next question"]
[24430,"C: manufacturing","Lead, zinc and tin production","Proceed to the next question"]
[24440,"C: manufacturing","Copper production","Proceed to the next question"]
[24450,"C: manufacturing","Other non-ferrous metal production","Proceed to the next question"]
[24460,"C: manufacturing","Processing of nuclear fuel","Proceed to the next question"]
[24510,"C: manufacturing","Casting of iron","Proceed to the next question"]
[24520,"C: manufacturing","Casting of steel","Proceed to the next question"]
[24530,"C: manufacturing","Casting of light metals","Proceed to the next question"]
[24540,"C: manufacturing","Casting of other non-ferrous metals","Proceed to the next question"]
[25110,"C: manufacturing","Manufacture of metal structures and parts of structures","Proceed to the next question"]
[25120,"C: manufacturing","Manufacture of doors and windows of metal","Proceed to the next question"]
[25210,"C: manufacturing","Manufacture of central heating radiators and boilers","Proceed to the next question"]
[25290,"C: manufacturing","Manufacture of other tanks, reservoirs and containers of metal","Proceed to the next question"]
[25300,"C: manufacturing","Manufacture of steam generators, except central heating hot water boilers","Proceed to the next question"]
[25400,"C: manufacturing","Manufacture of weapons and ammunition","Proceed to the next question"]
[25500,"C: manufacturing","Forging, pressing, stamping and roll-forming of metal; powder metallurgy","Proceed to the next question"]
[25610,"C: manufacturing","Treatment and coating of metals","Proceed to the next question"]
[25620,"C: manufacturing","Machining","Proceed to the next question"]
[25710,"C: manufacturing","Manufacture of cutlery","Proceed to the next question"]
[25720,"C: manufacturing","Manufacture of locks and hinges","Proceed to the next question"]
[25730,"C: manufacturing","Manufacture of tools","Proceed to the next question"]
[25910,"C: manufacturing","Manufacture of steel drums and similar containers","Proceed to the next question"]
[25920,"C: manufacturing","Manufacture of light metal packaging","Proceed to the next question"]
[25930,"C: manufacturing","Manufacture of wire products, chain and springs","Proceed to the next question"]
[25940,"C: manufacturing","Manufacture of fasteners and screw machine products","Proceed to the next question"]
[25990,"C: manufacturing","Manufacture of other fabricated metal products nec","Proceed to the next question"]
[26110,"C: manufacturing","Manufacture of electronic components","Proceed to the next question"]
[26120,"C: manufacturing","Manufacture of loaded electronic boards","Proceed to the next question"]
[26200,"C: manufacturing","Manufacture of computers and peripheral equipment","Proceed to the next question"]
[26300,"C: manufacturing","Manufacture of communication equipment","Proceed to the next question"]
[26301,"C: manufacturing","Manufacture of telegraph and telephone apparatus and equipment","Proceed to the next question"]
[26309,"C: manufacturing","Manufacture of communication equipment (other than telegraph and telephone apparatus and equipment)","Proceed to the next question"]
[26400,"C: manufacturing","Manufacture of consumer electronics","Proceed to the next question"]
[26510,"C: manufacturing","Manufacture of instruments and appliances for measuring, testing and navigation","Proceed to the next question"]
[26511,"C: manufacturing","Manufacture of electronic instruments and appliances for measuring, testing, and navigation, except industrial process control equipment","Proceed to the next question"]
[26512,"C: manufacturing","Manufacture of electronic industrial process control equipment","Proceed to the next question"]
[26513,"C: manufacturing","Manufacture of non-electronic instruments and appliances for measuring, testing and navigation, except industrial process control equipment","Proceed to the next question"]
[26514,"C: manufacturing","Manufacture of non-electronic industrial process control equipment","Proceed to the next question"]
[26520,"C: manufacturing","Manufacture of watches and clocks","Proceed to the next question"]
[26600,"C: manufacturing","Manufacture of irradiation, electromedical and electrotherapeutic equipment","Proceed to the next question"]
[26700,"C: manufacturing","Manufacture of optical instruments and photographic equipment","Proceed to the next question"]
[26701,"C: manufacturing","Manufacture of optical precision instruments","Proceed to the next question"]
[26702,"C: manufacturing","Manufacture of photographic and cinematographic equipment","Proceed to the next question"]
[26800,"C: manufacturing","Manufacture of magnetic and optical media","Proceed to the next question"]
[27110,"C: manufacturing","Manufacture of electric motors, generators and transformers","Proceed to the next question"]
[27120,"C: manufacturing","Manufacture of electricity distribution and control apparatus","Proceed to the next question"]
[27200,"C: manufacturing","Manufacture of batteries and accumulators","Proceed to the next question"]
[27310,"C: manufacturing","Manufacture of fibre optic cables","Proceed to the next question"]
[27320,"C: manufacturing","Manufacture of other electronic and electric wires and cables","Proceed to the next question"]
[27330,"C: manufacturing","Manufacture of wiring devices","Proceed to the next question"]
[27400,"C: manufacturing","Manufacture of electric lighting equipment","Proceed to the next question"]
[27510,"C: manufacturing","Manufacture of electric domestic appliances","Proceed to the next question"]
[27520,"C: manufacturing","Manufacture of non-electric domestic appliances","Proceed to the next question"]
[27900,"C: manufacturing","Manufacture of other electrical equipment","Proceed to the next question"]
[28110,"C: manufacturing","Manufacture of engines and turbines, except aircraft, vehicle and cycle engines","Proceed to the next question"]
[28120,"C: manufacturing","Manufacture of fluid power equipment","Proceed to the next question"]
[28130,"C: manufacturing","Manufacture of other pumps and compressors","Proceed to the next question"]
[28131,"C: manufacturing","Manufacture of pumps","Proceed to the next question"]
[28132,"C: manufacturing","Manufacture of compressors","Proceed to the next question"]
[28140,"C: manufacturing","Manufacture of other taps and valves","Proceed to the next question"]
[28150,"C: manufacturing","Manufacture of bearings, gears, gearing and driving elements","Proceed to the next question"]
[28210,"C: manufacturing","Manufacture of ovens, furnaces and furnace burners","Proceed to the next question"]
[28220,"C: manufacturing","Manufacture of lifting and handling equipment","Proceed to the next question"]
[28230,"C: manufacturing","Manufacture of office machinery and equipment (except computers and peripheral equipment)","Proceed to the next question"]
[28240,"C: manufacturing","Manufacture of power-driven hand tools","Proceed to the next question"]
[28250,"C: manufacturing","Manufacture of non-domestic cooling and ventilation equipment","Proceed to the next question"]
[28290,"C: manufacturing","Manufacture of other general-purpose machinery nec","Proceed to the next question"]
[28300,"C: manufacturing","Manufacture of agricultural and forestry machinery","Proceed to the next question"]
[28301,"C: manufacturing","Manufacture of agricultural tractors","Proceed to the next question"]
[28302,"C: manufacturing","Manufacture of agricultural and forestry machinery (other than agricultural tractors)","Proceed to the next question"]
[28410,"C: manufacturing","Manufacture of metal forming machinery","Proceed to the next question"]
[28490,"C: manufacturing","Manufacture of other machine tools","Proceed to the next question"]
[28910,"C: manufacturing","Manufacture of machinery for metallurgy","Proceed to the next question"]
[28920,"C: manufacturing","Manufacture of machinery for mining, quarrying and construction","Proceed to the next question"]
[28921,"C: manufacturing","Manufacture of machinery for mining","Proceed to the next question"]
[28922,"C: manufacturing","Manufacture of earthmoving equipment","Proceed to the next question"]
[28923,"C: manufacturing","Manufacture of equipment for concrete crushing and screening roadworks","Proceed to the next question"]
[28930,"C: manufacturing","Manufacture of machinery for food, beverage and tobacco processing","Proceed to the next question"]
[28940,"C: manufacturing","Manufacture of machinery for textile, apparel and leather production","Proceed to the next question"]
[28950,"C: manufacturing","Manufacture of machinery for paper and paperboard production","Proceed to the next question"]
[28960,"C: manufacturing","Manufacture of plastics and rubber machinery","Proceed to the next question"]
[28990,"C: manufacturing","Manufacture of other special-purpose machinery nec","Proceed to the next question"]
[29100,"C: manufacturing","Manufacture of motor vehicles","Proceed to the next question"]
[29200,"C: manufacturing","Manufacture of bodies (coachwork) for motor vehicles; manufacture of trailers and semi-trailers","Proceed to the next question"]
[29201,"C: manufacturing","Manufacture of bodies (coachwork) for motor vehicles (except caravans)","Proceed to the next question"]
[29202,"C: manufacturing","Manufacture of trailers and semi-trailers","Proceed to the next question"]
[29203,"C: manufacturing","Manufacture of caravans","Proceed to the next question"]
[29310,"C: manufacturing","Manufacture of electrical and electronic equipment for motor vehicles","Proceed to the next question"]
[29320,"C: manufacturing","Manufacture of other parts and accessories for motor vehicles","Proceed to the next question"]
[30110,"C: manufacturing","Building of ships and floating structures","AeroSpace Cornwall Team to verify eligibility"]
[30120,"C: manufacturing","Building of pleasure and sporting boats","Proceed to the next question"]
[30200,"C: manufacturing","Manufacture of railway locomotives and rolling stock","Proceed to the next question"]
[30300,"C: manufacturing","Manufacture of air and spacecraft and related machinery","Proceed to the next question"]
[30400,"C: manufacturing","Manufacture of military fighting vehicles","Proceed to the next question"]
[30910,"C: manufacturing","Manufacture of motorcycles","Proceed to the next question"]
[30920,"C: manufacturing","Manufacture of bicycles and invalid carriages","Proceed to the next question"]
[30990,"C: manufacturing","Manufacture of other transport equipment nec","Proceed to the next question"]
[31010,"C: manufacturing","Manufacture of office and shop furniture","Proceed to the next question"]
[31020,"C: manufacturing","Manufacture of kitchen furniture","Proceed to the next question"]
[31030,"C: manufacturing","Manufacture of mattresses","Proceed to the next question"]
[31090,"C: manufacturing","Manufacture of other furniture","Proceed to the next question"]
[32110,"C: manufacturing","Striking of coins","Proceed to the next question"]
[32120,"C: manufacturing","Manufacture of jewellery and related articles","Proceed to the next question"]
[32130,"C: manufacturing","Manufacture of imitation jewellery and related articles","Proceed to the next question"]
[32200,"C: manufacturing","Manufacture of musical instruments","Proceed to the next question"]
[32300,"C: manufacturing","Manufacture of sports goods","Proceed to the next question"]
[32400,"C: manufacturing","Manufacture of games and toys","Proceed to the next question"]
[32401,"C: manufacturing","Manufacture of professional and arcade games and toys","Proceed to the next question"]
[32409,"C: manufacturing","Manufacture of games and toys (other than professional and arcade games and toys) nec","Proceed to the next question"]
[32500,"C: manufacturing","Manufacture of medical and dental instruments and supplies","Proceed to the next question"]
[32910,"C: manufacturing","Manufacture of brooms and brushes","Proceed to the next question"]
[32990,"C: manufacturing","Other manufacturing nec","Proceed to the next question"]
[33110,"C: manufacturing","Repair of fabricated metal products","Proceed to the next question"]
[33120,"C: manufacturing","Repair of machinery","Proceed to the next question"]
[33130,"C: manufacturing","Repair of electronic and optical equipment","Proceed to the next question"]
[33140,"C: manufacturing","Repair of electrical equipment","Proceed to the next question"]
[33150,"C: manufacturing","Repair and maintenance of ships and boats","Proceed to the next question"]
[33160,"C: manufacturing","Repair and maintenance of aircraft and spacecraft","Proceed to the next question"]
[33170,"C: manufacturing","Repair and maintenance of other transport equipment","Proceed to the next question"]
[33190,"C: manufacturing","Repair of other equipment","Proceed to the next question"]
[33200,"C: manufacturing","Installation of industrial machinery and equipment","Proceed to the next question"]
[35110,"D: electricity, gas, steam & aircon","Production of electricity","Proceed to the next question"]
[35120,"D: electricity, gas, steam & aircon","Transmission of electricity","Proceed to the next question"]
[35130,"D: electricity, gas, steam & aircon","Distribution of electricity","Proceed to the next question"]
[35140,"D: electricity, gas, steam & aircon","Trade of electricity","Proceed to the next question"]
[35210,"D: electricity, gas, steam & aircon","Manufacture of gas","Proceed to the next question"]
[35220,"D: electricity, gas, steam & aircon","Distribution of gaseous fuels through mains","Proceed to the next question"]
[35230,"D: electricity, gas, steam & aircon","Trade of gas through mains","Proceed to the next question"]
[35300,"D: electricity, gas, steam & aircon","Steam and air conditioning supply","Proceed to the next question"]
[36000,"E: water; sewerage, waste & remediation ","Water collection, treatment and supply","Proceed to the next question"]
[37000,"E: water; sewerage, waste & remediation ","Sewerage","Proceed to the next question"]
[38110,"E: water; sewerage, waste & remediation ","Collection of non-hazardous waste","Proceed to the next question"]
[38120,"E: water; sewerage, waste & remediation ","Collection of hazardous waste","Proceed to the next question"]
[38210,"E: water; sewerage, waste & remediation ","Treatment and disposal of non-hazardous waste","Proceed to the next question"]
[38220,"E: water; sewerage, waste & remediation ","Treatment and disposal of hazardous waste","Proceed to the next question"]
[38310,"E: water; sewerage, waste & remediation ","Dismantling of wrecks","Proceed to the next question"]
[38320,"E: water; sewerage, waste & remediation ","Recovery of sorted materials","Proceed to the next question"]
[39000,"E: water; sewerage, waste & remediation ","Remediation activities and other waste management services","Proceed to the next question"]
[41100,"F: construction","Development of building projects","Proceed to the next question"]
[41200,"F: construction","Construction of residential and non-residential buildings","AeroSpace Cornwall Team to verify eligibility"]
[41201,"F: construction","Construction of commercial buildings","AeroSpace Cornwall Team to verify eligibility"]
[41202,"F: construction","Construction of domestic buildings","AeroSpace Cornwall Team to verify eligibility"]
[42110,"F: construction","Construction of roads and motorways","AeroSpace Cornwall Team to verify eligibility"]
[42120,"F: construction","Construction of railways and underground railways","AeroSpace Cornwall Team to verify eligibility"]
[42130,"F: construction","Construction of bridges and tunnels","AeroSpace Cornwall Team to verify eligibility"]
[42210,"F: construction","Construction of utility projects for fluids","AeroSpace Cornwall Team to verify eligibility"]
[42220,"F: construction","Construction of utility projects for electricity and telecommunications","AeroSpace Cornwall Team to verify eligibility"]
[42910,"F: construction","Construction of water projects","AeroSpace Cornwall Team to verify eligibility"]
[42990,"F: construction","Construction of other civil engineering projects nec","AeroSpace Cornwall Team to verify eligibility"]
[43110,"F: construction","Demolition","Proceed to the next question"]
[43120,"F: construction","Site preparation","Proceed to the next question"]
[43130,"F: construction","Test drilling and boring","Proceed to the next question"]
[43210,"F: construction","Electrical installation","Proceed to the next question"]
[43220,"F: construction","Plumbing, heat and air-conditioning installation","Proceed to the next question"]
[43290,"F: construction","Other construction installation","Proceed to the next question"]
[43310,"F: construction","Plastering","Proceed to the next question"]
[43320,"F: construction","Joinery installation","Proceed to the next question"]
[43330,"F: construction","Floor and wall covering","Proceed to the next question"]
[43340,"F: construction","Painting and glazing","Proceed to the next question"]
[43341,"F: construction","Painting","Proceed to the next question"]
[43342,"F: construction","Glazing","Proceed to the next question"]
[43390,"F: construction","Other building completion and finishing","Proceed to the next question"]
[43910,"F: construction","Roofing activities","Proceed to the next question"]
[43990,"F: construction","Other specialised construction activities nec","Proceed to the next question"]
[43991,"F: construction","Scaffold erection","Proceed to the next question"]
[43999,"F: construction","Specialised construction activities (other than scaffold erection) nec","Proceed to the next question"]
[45110,"G: wholesale & retail; repair of automotives","Sale of cars and light motor vehicles","AeroSpace Cornwall Team to verify eligibility"]
[45111,"G: wholesale & retail; repair of automotives","Sale of new cars and light motor vehicles","AeroSpace Cornwall Team to verify eligibility"]
[45112,"G: wholesale & retail; repair of automotives","Sale of used cars and light motor vehicles","AeroSpace Cornwall Team to verify eligibility"]
[45190,"G: wholesale & retail; repair of automotives","Sale of other motor vehicles","Proceed to the next question"]
[45200,"G: wholesale & retail; repair of automotives","Maintenance and repair of motor vehicles","Proceed to the next question"]
[45310,"G: wholesale & retail; repair of automotives","Wholesale trade of motor vehicle parts and accessories","Proceed to the next question"]
[45320,"G: wholesale & retail; repair of automotives","Retail trade of motor vehicle parts and accessories","Proceed to the next question"]
[45400,"G: wholesale & retail; repair of automotives","Sale, maintenance and repair of motorcycles and related parts and accessories","Proceed to the next question"]
[46110,"G: wholesale & retail; repair of automotives","Agents involved in the sale of agricultural raw materials, live animals, textile raw materials and semi-finished goods","Proceed to the next question"]
[46120,"G: wholesale & retail; repair of automotives","Agents involved in the sale of fuels, ores, metals and industrial chemicals","Proceed to the next question"]
[46130,"G: wholesale & retail; repair of automotives","Agents involved in the sale of timber and building materials","Proceed to the next question"]
[46140,"G: wholesale & retail; repair of automotives","Agents involved in the sale of machinery, industrial equipment, ships and aircraft","Proceed to the next question"]
[46150,"G: wholesale & retail; repair of automotives","Agents involved in the sale of furniture, household goods, hardware and ironmongery","Proceed to the next question"]
[46160,"G: wholesale & retail; repair of automotives","Agents involved in the sale of textiles, clothing, fur, footwear and leather goods","Proceed to the next question"]
[46170,"G: wholesale & retail; repair of automotives","Agents involved in the sale of food, beverages and tobacco","Proceed to the next question"]
[46180,"G: wholesale & retail; repair of automotives","Agents specialised in the sale of other particular products","Proceed to the next question"]
[46190,"G: wholesale & retail; repair of automotives","Agents involved in the sale of a variety of goods","Proceed to the next question"]
[46210,"G: wholesale & retail; repair of automotives","Wholesale of grain, unmanufactured tobacco, seeds and animal feeds","Proceed to the next question"]
[46220,"G: wholesale & retail; repair of automotives","Wholesale of flowers and plants","Proceed to the next question"]
[46230,"G: wholesale & retail; repair of automotives","Wholesale of live animals","Proceed to the next question"]
[46240,"G: wholesale & retail; repair of automotives","Wholesale of hides, skins and leather","Proceed to the next question"]
[46310,"G: wholesale & retail; repair of automotives","Wholesale of fruit and vegetables","Proceed to the next question"]
[46320,"G: wholesale & retail; repair of automotives","Wholesale of meat and meat products","Proceed to the next question"]
[46330,"G: wholesale & retail; repair of automotives","Wholesale of dairy products, eggs and edible oils and fats","Proceed to the next question"]
[46340,"G: wholesale & retail; repair of automotives","Wholesale of beverages","Proceed to the next question"]
[46341,"G: wholesale & retail; repair of automotives","Wholesale of fruit and vegetable juices, mineral waters and soft drinks","Proceed to the next question"]
[46342,"G: wholesale & retail; repair of automotives","Wholesale of wine, beer, spirits and other alcoholic beverages","Proceed to the next question"]
[46350,"G: wholesale & retail; repair of automotives","Wholesale of tobacco products","Proceed to the next question"]
[46360,"G: wholesale & retail; repair of automotives","Wholesale of sugar and chocolate and sugar confectionery","Proceed to the next question"]
[46370,"G: wholesale & retail; repair of automotives","Wholesale of coffee, tea, cocoa and spices","Proceed to the next question"]
[46380,"G: wholesale & retail; repair of automotives","Wholesale of other food, including fish, crustaceans and molluscs","Proceed to the next question"]
[46390,"G: wholesale & retail; repair of automotives","Non-specialised wholesale of food, beverages and tobacco","Proceed to the next question"]
[46410,"G: wholesale & retail; repair of automotives","Wholesale of textiles","Proceed to the next question"]
[46420,"G: wholesale & retail; repair of automotives","Wholesale of clothing and footwear","Proceed to the next question"]
[46430,"G: wholesale & retail; repair of automotives","Wholesale of electrical household appliances","Proceed to the next question"]
[46431,"G: wholesale & retail; repair of automotives","Wholesale of gramophone records, audio tapes, compact discs and video tapes and of the equipment on which these are played","Proceed to the next question"]
[46439,"G: wholesale & retail; repair of automotives","Wholesale of radio and television goods and of electrical household appliances (other than of gramophone records, audio tapes, compact discs and video tapes and the equipment on which these are played) nec","Proceed to the next question"]
[46440,"G: wholesale & retail; repair of automotives","Wholesale of china and glassware and cleaning materials","Proceed to the next question"]
[46450,"G: wholesale & retail; repair of automotives","Wholesale of perfume and cosmetics","Proceed to the next question"]
[46460,"G: wholesale & retail; repair of automotives","Wholesale of pharmaceutical goods","Proceed to the next question"]
[46470,"G: wholesale & retail; repair of automotives","Wholesale of furniture, carpets and lighting equipment","Proceed to the next question"]
[46480,"G: wholesale & retail; repair of automotives","Wholesale of watches and jewellery","Proceed to the next question"]
[46490,"G: wholesale & retail; repair of automotives","Wholesale of other household goods","Proceed to the next question"]
[46491,"G: wholesale & retail; repair of automotives","Wholesale of musical instruments","Proceed to the next question"]
[46499,"G: wholesale & retail; repair of automotives","Wholesale of household goods (other than musical instruments) nec","Proceed to the next question"]
[46510,"G: wholesale & retail; repair of automotives","Wholesale of computers, computer peripheral equipment and software","Proceed to the next question"]
[46520,"G: wholesale & retail; repair of automotives","Wholesale of electronic and telecommunications equipment and parts","Proceed to the next question"]
[46610,"G: wholesale & retail; repair of automotives","Wholesale of agricultural machinery, equipment and supplies","Proceed to the next question"]
[46620,"G: wholesale & retail; repair of automotives","Wholesale of machine tools","Proceed to the next question"]
[46630,"G: wholesale & retail; repair of automotives","Wholesale of mining, construction and civil engineering machinery","Proceed to the next question"]
[46640,"G: wholesale & retail; repair of automotives","Wholesale of machinery for the textile industry and of sewing and knitting machines","Proceed to the next question"]
[46650,"G: wholesale & retail; repair of automotives","Wholesale of office furniture","Proceed to the next question"]
[46660,"G: wholesale & retail; repair of automotives","Wholesale of other office machinery and equipment","Proceed to the next question"]
[46690,"G: wholesale & retail; repair of automotives","Wholesale of other machinery and equipment","Proceed to the next question"]
[46710,"G: wholesale & retail; repair of automotives","Wholesale of solid, liquid and gaseous fuels and related products","Proceed to the next question"]
[46711,"G: wholesale & retail; repair of automotives","Wholesale of petroleum and petroleum products","Proceed to the next question"]
[46719,"G: wholesale & retail; repair of automotives","Wholesale of fuels and related products (other than petroleum and petroleum products)","Proceed to the next question"]
[46720,"G: wholesale & retail; repair of automotives","Wholesale of metals and metal ores","Proceed to the next question"]
[46730,"G: wholesale & retail; repair of automotives","Wholesale of wood, construction materials and sanitary equipment","Proceed to the next question"]
[46740,"G: wholesale & retail; repair of automotives","Wholesale of hardware, plumbing and heating equipment and supplies","Proceed to the next question"]
[46750,"G: wholesale & retail; repair of automotives","Wholesale of chemical products","Proceed to the next question"]
[46760,"G: wholesale & retail; repair of automotives","Wholesale of other intermediate products","Proceed to the next question"]
[46770,"G: wholesale & retail; repair of automotives","Wholesale of waste and scrap","Proceed to the next question"]
[46900,"G: wholesale & retail; repair of automotives","Non-specialised wholesale trade","Proceed to the next question"]
[47110,"G: wholesale & retail; repair of automotives","Retail sale in non-specialised stores with food, beverages or tobacco predominating","AeroSpace Cornwall Team to verify eligibility"]
[47190,"G: wholesale & retail; repair of automotives","Other retail sale in non-specialised stores","AeroSpace Cornwall Team to verify eligibility"]
[47210,"G: wholesale & retail; repair of automotives","Retail sale of fruit and vegetables in specialised stores","AeroSpace Cornwall Team to verify eligibility"]
[47220,"G: wholesale & retail; repair of automotives","Retail sale of meat and meat products in specialised stores","AeroSpace Cornwall Team to verify eligibility"]
[47230,"G: wholesale & retail; repair of automotives","Retail sale of fish, crustaceans and molluscs in specialised stores","AeroSpace Cornwall Team to verify eligibility"]
[47240,"G: wholesale & retail; repair of automotives","Retail sale of bread, cakes, flour confectionery and sugar confectionery in specialised stores","AeroSpace Cornwall Team to verify eligibility"]
[47250,"G: wholesale & retail; repair of automotives","Retail sale of beverages in specialised stores","AeroSpace Cornwall Team to verify eligibility"]
[47260,"G: wholesale & retail; repair of automotives","Retail sale of tobacco products in specialised stores","AeroSpace Cornwall Team to verify eligibility"]
[47290,"G: wholesale & retail; repair of automotives","Other retail sale of food in specialised stores","AeroSpace Cornwall Team to verify eligibility"]
[47300,"G: wholesale & retail; repair of automotives","Retail sale of automotive fuel in specialised stores","AeroSpace Cornwall Team to verify eligibility"]
[47410,"G: wholesale & retail; repair of automotives","Retail sale of computers, peripheral units and software in specialised stores","AeroSpace Cornwall Team to verify eligibility"]
[47420,"G: wholesale & retail; repair of automotives","Retail sale of telecommunications equipment in specialised stores","AeroSpace Cornwall Team to verify eligibility"]
[47421,"G: wholesale & retail; repair of automotives","Retail sale of mobile telephones in specialised stores","AeroSpace Cornwall Team to verify eligibility"]
[47429,"G: wholesale & retail; repair of automotives","Retail sale of telecommunications equipment (other than mobile telephones) nec, in specialised stores","AeroSpace Cornwall Team to verify eligibility"]
[47430,"G: wholesale & retail; repair of automotives","Retail sale of audio and video equipment in specialised stores","AeroSpace Cornwall Team to verify eligibility"]
[47510,"G: wholesale & retail; repair of automotives","Retail sale of textiles in specialised stores","AeroSpace Cornwall Team to verify eligibility"]
[47520,"G: wholesale & retail; repair of automotives","Retail sale of hardware, paints and glass in specialised stores","AeroSpace Cornwall Team to verify eligibility"]
[47530,"G: wholesale & retail; repair of automotives","Retail sale of carpets, rugs, wall and floor coverings in specialised stores","AeroSpace Cornwall Team to verify eligibility"]
[47540,"G: wholesale & retail; repair of automotives","Retail sale of electrical household appliances in specialised stores","AeroSpace Cornwall Team to verify eligibility"]
[47590,"G: wholesale & retail; repair of automotives","Retail sale of furniture, lighting equipment and other household articles in specialised stores","AeroSpace Cornwall Team to verify eligibility"]
[47591,"G: wholesale & retail; repair of automotives","Retail sale of musical instruments and scores in specialised stores","AeroSpace Cornwall Team to verify eligibility"]
[47599,"G: wholesale & retail; repair of automotives","Retail sale of furniture, lighting equipment and other household articles (other than musical instruments) nec, in specialised stores","AeroSpace Cornwall Team to verify eligibility"]
[47610,"G: wholesale & retail; repair of automotives","Retail sale of books in specialised stores","AeroSpace Cornwall Team to verify eligibility"]
[47620,"G: wholesale & retail; repair of automotives","Retail sale of newspapers and stationery in specialised stores","AeroSpace Cornwall Team to verify eligibility"]
[47630,"G: wholesale & retail; repair of automotives","Retail sale of music and video recordings in specialised stores","AeroSpace Cornwall Team to verify eligibility"]
[47640,"G: wholesale & retail; repair of automotives","Retail sale of sporting equipment in specialised stores","AeroSpace Cornwall Team to verify eligibility"]
[47650,"G: wholesale & retail; repair of automotives","Retail sale of games and toys in specialised stores","AeroSpace Cornwall Team to verify eligibility"]
[47710,"G: wholesale & retail; repair of automotives","Retail sale of clothing in specialised stores","AeroSpace Cornwall Team to verify eligibility"]
[47720,"G: wholesale & retail; repair of automotives","Retail sale of footwear and leather goods in specialised stores","AeroSpace Cornwall Team to verify eligibility"]
[47721,"G: wholesale & retail; repair of automotives","Retail sale of footwear in specialised stores","AeroSpace Cornwall Team to verify eligibility"]
[47722,"G: wholesale & retail; repair of automotives","Retail sale of leather goods in specialised stores","AeroSpace Cornwall Team to verify eligibility"]
[47730,"G: wholesale & retail; repair of automotives","Dispensing chemist in specialised stores","AeroSpace Cornwall Team to verify eligibility"]
[47740,"G: wholesale & retail; repair of automotives","Retail sale of medical and orthopaedic goods in specialised stores","AeroSpace Cornwall Team to verify eligibility"]
[47741,"G: wholesale & retail; repair of automotives","Retail sale of hearing aids in specialised stores","AeroSpace Cornwall Team to verify eligibility"]
[47749,"G: wholesale & retail; repair of automotives","Retail sale of medical and orthopaedic goods (other than hearing aids) nec, in specialised stores","AeroSpace Cornwall Team to verify eligibility"]
[47750,"G: wholesale & retail; repair of automotives","Retail sale of cosmetic and toilet articles in specialised stores","AeroSpace Cornwall Team to verify eligibility"]
[47760,"G: wholesale & retail; repair of automotives","Retail sale of flowers, plants, seeds, fertilisers, pet animals and pet food in specialised stores","AeroSpace Cornwall Team to verify eligibility"]
[47770,"G: wholesale & retail; repair of automotives","Retail sale of watches and jewellery in specialised stores","AeroSpace Cornwall Team to verify eligibility"]
[47780,"G: wholesale & retail; repair of automotives","Other retail sale of new goods in specialised stores","AeroSpace Cornwall Team to verify eligibility"]
[47781,"G: wholesale & retail; repair of automotives","Retail sale in commercial art galleries","AeroSpace Cornwall Team to verify eligibility"]
[47782,"G: wholesale & retail; repair of automotives","Retail sale by opticians","AeroSpace Cornwall Team to verify eligibility"]
[47789,"G: wholesale & retail; repair of automotives","Other retail sale of new goods in specialised stores (other than by opticians or commercial art galleries), nec","AeroSpace Cornwall Team to verify eligibility"]
[47790,"G: wholesale & retail; repair of automotives","Retail sale of second-hand goods in stores","AeroSpace Cornwall Team to verify eligibility"]
[47791,"G: wholesale & retail; repair of automotives","Retail sale of antiques including antique books, in stores","AeroSpace Cornwall Team to verify eligibility"]
[47799,"G: wholesale & retail; repair of automotives","Retail sale of second-hand goods (other than antiques and antique books) in stores","AeroSpace Cornwall Team to verify eligibility"]
[47810,"G: wholesale & retail; repair of automotives","Retail sale via stalls and markets of food, beverages and tobacco products","AeroSpace Cornwall Team to verify eligibility"]
[47820,"G: wholesale & retail; repair of automotives","Retail sale via stalls and markets of textiles, clothing and footwear","AeroSpace Cornwall Team to verify eligibility"]
[47890,"G: wholesale & retail; repair of automotives","Retail sale via stalls and markets of other goods","AeroSpace Cornwall Team to verify eligibility"]
[47910,"G: wholesale & retail; repair of automotives","Retail sale via mail order houses or via Internet","AeroSpace Cornwall Team to verify eligibility"]
[47990,"G: wholesale & retail; repair of automotives","Other retail sale not in stores, stalls or markets","AeroSpace Cornwall Team to verify eligibility"]
[49100," H: transportation & storage","Passenger rail transport, interurban","AeroSpace Cornwall Team to verify eligibility"]
[49200," H: transportation & storage","Freight rail transport","AeroSpace Cornwall Team to verify eligibility"]
[49310," H: transportation & storage","Urban and suburban passenger land transport","AeroSpace Cornwall Team to verify eligibility"]
[49311," H: transportation & storage","Urban, suburban or metropolitan area passenger railway transportation by underground, metro and similar systems","AeroSpace Cornwall Team to verify eligibility"]
[49319," H: transportation & storage","Urban, suburban or metropolitan area passenger land transport other than railway transportation by underground, metro and similar systems","AeroSpace Cornwall Team to verify eligibility"]
[49320," H: transportation & storage","Taxi operation","AeroSpace Cornwall Team to verify eligibility"]
[49390," H: transportation & storage","Other passenger land transport nec","AeroSpace Cornwall Team to verify eligibility"]
[49410," H: transportation & storage","Freight transport by road","AeroSpace Cornwall Team to verify eligibility"]
[49420," H: transportation & storage","Removal services","AeroSpace Cornwall Team to verify eligibility"]
[49500," H: transportation & storage","Transport via pipeline","AeroSpace Cornwall Team to verify eligibility"]
[50100," H: transportation & storage","Sea and coastal passenger water transport","AeroSpace Cornwall Team to verify eligibility"]
[50200," H: transportation & storage","Sea and coastal freight water transport","AeroSpace Cornwall Team to verify eligibility"]
[50300," H: transportation & storage","Inland passenger water transport","AeroSpace Cornwall Team to verify eligibility"]
[50400," H: transportation & storage","Inland freight water transport","AeroSpace Cornwall Team to verify eligibility"]
[51100," H: transportation & storage","Passenger air transport","AeroSpace Cornwall Team to verify eligibility"]
[51101," H: transportation & storage","Scheduled passenger air transport","AeroSpace Cornwall Team to verify eligibility"]
[51102," H: transportation & storage","Non-scheduled passenger air transport","AeroSpace Cornwall Team to verify eligibility"]
[51210," H: transportation & storage","Freight air transport","AeroSpace Cornwall Team to verify eligibility"]
[51220," H: transportation & storage","Space transport","AeroSpace Cornwall Team to verify eligibility"]
[52100," H: transportation & storage","Warehousing and storage","AeroSpace Cornwall Team to verify eligibility"]
[52101," H: transportation & storage","Operation of warehousing and storage facilities for water transport activities of division 50","AeroSpace Cornwall Team to verify eligibility"]
[52102," H: transportation & storage","Operation of warehousing and storage facilities for air transport activities of division 51","AeroSpace Cornwall Team to verify eligibility"]
[52103," H: transportation & storage","Operation of warehousing and storage facilities for land transport activities of division 49","AeroSpace Cornwall Team to verify eligibility"]
[52210," H: transportation & storage","Service activities incidental to land transportation","AeroSpace Cornwall Team to verify eligibility"]
[52211," H: transportation & storage","Operation of rail freight terminals","AeroSpace Cornwall Team to verify eligibility"]
[52212," H: transportation & storage","Operation of rail passenger facilities at railway stations","AeroSpace Cornwall Team to verify eligibility"]
[52213," H: transportation & storage","Operation of bus and coach passenger facilities at bus and coach stations","AeroSpace Cornwall Team to verify eligibility"]
[52219," H: transportation & storage","Other service activities incidental to land transportation, nec (not including operation of rail freight terminals, passenger facilities at railway stations or passenger facilities at bus and coach stations)","AeroSpace Cornwall Team to verify eligibility"]
[52220," H: transportation & storage","Service activities incidental to water transportation","AeroSpace Cornwall Team to verify eligibility"]
[52230," H: transportation & storage","Service activities incidental to air transportation","AeroSpace Cornwall Team to verify eligibility"]
[52240," H: transportation & storage","Cargo handling","AeroSpace Cornwall Team to verify eligibility"]
[52241," H: transportation & storage","Cargo handling for water transport activities of division 50","AeroSpace Cornwall Team to verify eligibility"]
[52242," H: transportation & storage","Cargo handling for air transport activities of division 51","AeroSpace Cornwall Team to verify eligibility"]
[52243," H: transportation & storage","Cargo handling for land transport activities of division 49","AeroSpace Cornwall Team to verify eligibility"]
[52290," H: transportation & storage","Other transportation support activities","AeroSpace Cornwall Team to verify eligibility"]
[53100," H: transportation & storage","Postal activities under universal service obligation","AeroSpace Cornwall Team to verify eligibility"]
[53200," H: transportation & storage","Other postal and courier activities","AeroSpace Cornwall Team to verify eligibility"]
[53201," H: transportation & storage","Licensed Carriers","AeroSpace Cornwall Team to verify eligibility"]
[53202," H: transportation & storage","Unlicensed Carriers","AeroSpace Cornwall Team to verify eligibility"]
[55100,"I: accommodation & food service ","Hotels and similar accommodation","AeroSpace Cornwall Team to verify eligibility"]
[55200,"I: accommodation & food service ","Holiday and other short-stay accommodation","AeroSpace Cornwall Team to verify eligibility"]
[55201,"I: accommodation & food service ","Holiday centres and villages","AeroSpace Cornwall Team to verify eligibility"]
[55202,"I: accommodation & food service ","Youth hostels","AeroSpace Cornwall Team to verify eligibility"]
[55209,"I: accommodation & food service ","Other holiday and other short-stay accommodation (not including holiday centres and villages or youth hostels) nec","AeroSpace Cornwall Team to verify eligibility"]
[55300,"I: accommodation & food service ","Camping grounds, recreational vehicle parks and trailer parks","AeroSpace Cornwall Team to verify eligibility"]
[55900,"I: accommodation & food service ","Other accommodation","AeroSpace Cornwall Team to verify eligibility"]
[56100,"I: accommodation & food service ","Restaurants and mobile food service activities","AeroSpace Cornwall Team to verify eligibility"]
[56101,"I: accommodation & food service ","Licensed restaurants","AeroSpace Cornwall Team to verify eligibility"]
[56102,"I: accommodation & food service ","Unlicensed restaurants and cafes","AeroSpace Cornwall Team to verify eligibility"]
[56103,"I: accommodation & food service ","Take away food shops and mobile food stands","AeroSpace Cornwall Team to verify eligibility"]
[56210,"I: accommodation & food service ","Event catering activities","AeroSpace Cornwall Team to verify eligibility"]
[56290,"I: accommodation & food service ","Other food service activities","AeroSpace Cornwall Team to verify eligibility"]
[56300,"I: accommodation & food service ","Beverage serving activities","AeroSpace Cornwall Team to verify eligibility"]
[56301,"I: accommodation & food service ","Licensed clubs","AeroSpace Cornwall Team to verify eligibility"]
[56302,"I: accommodation & food service ","Public houses and bars","AeroSpace Cornwall Team to verify eligibility"]
[58110,"J: information & communication","Book publishing","Proceed to the next question"]
[58120,"J: information & communication","Publishing of directories and mailing lists","Proceed to the next question"]
[58130,"J: information & communication","Publishing of newspapers","Proceed to the next question"]
[58140,"J: information & communication","Publishing of journals and periodicals","Proceed to the next question"]
[58141,"J: information & communication","Publishing of learned journals","Proceed to the next question"]
[58142,"J: information & communication","Publishing of consumer, business and professional journals and periodicals","Proceed to the next question"]
[58190,"J: information & communication","Other publishing activities","Proceed to the next question"]
[58210,"J: information & communication","Publishing of computer games","Proceed to the next question"]
[58290,"J: information & communication","Other software publishing","Proceed to the next question"]
[59110,"J: information & communication","Motion picture, video and television programme production activities","Proceed to the next question"]
[59111,"J: information & communication","Motion picture production activities","Proceed to the next question"]
[59112,"J: information & communication","Video production activities","Proceed to the next question"]
[59113,"J: information & communication","Television programme production activities","Proceed to the next question"]
[59120,"J: information & communication","Motion picture, video and television programme post-production activities","Proceed to the next question"]
[59130,"J: information & communication","Motion picture, video and television programme distribution activities","Proceed to the next question"]
[59131,"J: information & communication","Motion picture distribution activities","Proceed to the next question"]
[59132,"J: information & communication","Video distribution activities","Proceed to the next question"]
[59133,"J: information & communication","Television programme distribution activities","Proceed to the next question"]
[59140,"J: information & communication","Motion picture projection activities","Proceed to the next question"]
[59200,"J: information & communication","Sound recording and music publishing activities","Proceed to the next question"]
[60100,"J: information & communication","Radio broadcasting","Proceed to the next question"]
[60200,"J: information & communication","Television programming and broadcasting activities","Proceed to the next question"]
[61100,"J: information & communication","Wired telecommunications activities","Proceed to the next question"]
[61200,"J: information & communication","Wireless telecommunications activities","Proceed to the next question"]
[61300,"J: information & communication","Satellite telecommunications activities","Proceed to the next question"]
[61900,"J: information & communication","Other telecommunications activities","Proceed to the next question"]
[62010,"J: information & communication","Computer programming activities","Proceed to the next question"]
[62011,"J: information & communication","Ready-made interactive leisure and entertainment software development","Proceed to the next question"]
[62012,"J: information & communication","Business and domestic software development","Proceed to the next question"]
[62020,"J: information & communication","Computer consultancy activities","Proceed to the next question"]
[62030,"J: information & communication","Computer facilities management activities","Proceed to the next question"]
[62090,"J: information & communication","Other information technology and computer service activities","Proceed to the next question"]
[63110,"J: information & communication","Data processing, hosting and related activities","Proceed to the next question"]
[63120,"J: information & communication","Web portals","Proceed to the next question"]
[63910,"J: information & communication","News agency activities","Proceed to the next question"]
[63990,"J: information & communication","Other information service activities nec","Proceed to the next question"]
[64110,"K: financial & insurance ","Central banking","AeroSpace Cornwall Team to verify eligibility"]
[64190,"K: financial & insurance ","Other monetary intermediation","AeroSpace Cornwall Team to verify eligibility"]
[64191,"K: financial & insurance ","Banks","AeroSpace Cornwall Team to verify eligibility"]
[64192,"K: financial & insurance ","Building societies","AeroSpace Cornwall Team to verify eligibility"]
[64200,"K: financial & insurance ","Activities of holding companies","AeroSpace Cornwall Team to verify eligibility"]
[64201,"K: financial & insurance ","Activities of agricultural holding companies","AeroSpace Cornwall Team to verify eligibility"]
[64202,"K: financial & insurance ","Activities of production holding companies","AeroSpace Cornwall Team to verify eligibility"]
[64203,"K: financial & insurance ","Activities of construction holding companies","AeroSpace Cornwall Team to verify eligibility"]
[64204,"K: financial & insurance ","Activities of distribution holding companies","AeroSpace Cornwall Team to verify eligibility"]
[64205,"K: financial & insurance ","Activities of financial services holding companies","AeroSpace Cornwall Team to verify eligibility"]
[64209,"K: financial & insurance ","Activities of other holding companies (not including agricultural, production, construction, distribution and financial services holding companies) nec","AeroSpace Cornwall Team to verify eligibility"]
[64300,"K: financial & insurance ","Trusts, funds and similar financial entities","AeroSpace Cornwall Team to verify eligibility"]
[64301,"K: financial & insurance ","Activities of investment trusts","AeroSpace Cornwall Team to verify eligibility"]
[64302,"K: financial & insurance ","Activities of unit trusts","AeroSpace Cornwall Team to verify eligibility"]
[64303,"K: financial & insurance ","Activities of venture and development capital companies","AeroSpace Cornwall Team to verify eligibility"]
[64304,"K: financial & insurance ","Activities of open-ended investment companies","AeroSpace Cornwall Team to verify eligibility"]
[64305,"K: financial & insurance ","Activities of property unit trusts","AeroSpace Cornwall Team to verify eligibility"]
[64306,"K: financial & insurance ","Activities of real estate investment trusts","AeroSpace Cornwall Team to verify eligibility"]
[64910,"K: financial & insurance ","Financial leasing","AeroSpace Cornwall Team to verify eligibility"]
[64920,"K: financial & insurance ","Other credit granting","AeroSpace Cornwall Team to verify eligibility"]
[64921,"K: financial & insurance ","Credit granting by non-deposit taking finance houses and other specialist consumer credit grantors","AeroSpace Cornwall Team to verify eligibility"]
[64922,"K: financial & insurance ","Activities of mortgage finance companies","AeroSpace Cornwall Team to verify eligibility"]
[64929,"K: financial & insurance ","Other credit granting (not including credit granting by non-deposit taking finance houses and other specialist consumer credit grantors and activities of mortgage finance companies) nec","AeroSpace Cornwall Team to verify eligibility"]
[64990,"K: financial & insurance ","Other financial service activities, except insurance and pension funding, nec","AeroSpace Cornwall Team to verify eligibility"]
[64991,"K: financial & insurance ","Security dealing on own account","AeroSpace Cornwall Team to verify eligibility"]
[64992,"K: financial & insurance ","Factoring","AeroSpace Cornwall Team to verify eligibility"]
[64999,"K: financial & insurance ","Other financial service activities, except insurance and pension funding, (not including security dealing on own account and factoring) nec","AeroSpace Cornwall Team to verify eligibility"]
[65110,"K: financial & insurance ","Life insurance","AeroSpace Cornwall Team to verify eligibility"]
[65120,"K: financial & insurance ","Non-life insurance","AeroSpace Cornwall Team to verify eligibility"]
[65200,"K: financial & insurance ","Reinsurance","AeroSpace Cornwall Team to verify eligibility"]
[65201,"K: financial & insurance ","Life reinsurance","AeroSpace Cornwall Team to verify eligibility"]
[65202,"K: financial & insurance ","Non-life reinsurance","AeroSpace Cornwall Team to verify eligibility"]
[65300,"K: financial & insurance ","Pension funding","AeroSpace Cornwall Team to verify eligibility"]
[66110,"K: financial & insurance ","Administration of financial markets","AeroSpace Cornwall Team to verify eligibility"]
[66120,"K: financial & insurance ","Security and commodity contracts brokerage","AeroSpace Cornwall Team to verify eligibility"]
[66190,"K: financial & insurance ","Other activities auxiliary to financial services, except insurance and pension funding","AeroSpace Cornwall Team to verify eligibility"]
[66210,"K: financial & insurance ","Risk and damage evaluation","AeroSpace Cornwall Team to verify eligibility"]
[66220,"K: financial & insurance ","Activities of insurance agents and brokers","AeroSpace Cornwall Team to verify eligibility"]
[66290,"K: financial & insurance ","Other activities auxiliary to insurance and pension funding","AeroSpace Cornwall Team to verify eligibility"]
[66300,"K: financial & insurance ","Fund management activities","AeroSpace Cornwall Team to verify eligibility"]
[68100," L: real estate ","Buying and selling of own real estate","AeroSpace Cornwall Team to verify eligibility"]
[68200," L: real estate ","Renting and operating of own or leased real estate","AeroSpace Cornwall Team to verify eligibility"]
[68201," L: real estate ","Renting and operating of Housing Association real estate","AeroSpace Cornwall Team to verify eligibility"]
[68202," L: real estate ","Letting and operating of conference and exhibition centres","AeroSpace Cornwall Team to verify eligibility"]
[68209," L: real estate ","Letting and operating of own or leased real estate (other than Housing Association real estate and conference and exhibition services) nec","AeroSpace Cornwall Team to verify eligibility"]
[68310," L: real estate ","Real estate agencies","AeroSpace Cornwall Team to verify eligibility"]
[68320," L: real estate ","Management of real estate on a fee or contract basis","AeroSpace Cornwall Team to verify eligibility"]
[69100,"M: professional, scientific & technical ","Legal activities","AeroSpace Cornwall Team to verify eligibility"]
[69101,"M: professional, scientific & technical ","Barristers at law","AeroSpace Cornwall Team to verify eligibility"]
[69102,"M: professional, scientific & technical ","Solicitors","AeroSpace Cornwall Team to verify eligibility"]
[69109,"M: professional, scientific & technical ","Activities of patent and copyright agents; other legal activities (other than those of barristers and solicitors) nec","AeroSpace Cornwall Team to verify eligibility"]
[69200,"M: professional, scientific & technical ","Accounting, bookkeeping and auditing activities; tax consultancy","AeroSpace Cornwall Team to verify eligibility"]
[69201,"M: professional, scientific & technical ","Accounting, and auditing activities","AeroSpace Cornwall Team to verify eligibility"]
[69202,"M: professional, scientific & technical ","Bookkeeping activities","AeroSpace Cornwall Team to verify eligibility"]
[69203,"M: professional, scientific & technical ","Tax consultancy","AeroSpace Cornwall Team to verify eligibility"]
[70100,"M: professional, scientific & technical ","Activities of head offices","AeroSpace Cornwall Team to verify eligibility"]
[70210,"M: professional, scientific & technical ","Public relations and communication activities","AeroSpace Cornwall Team to verify eligibility"]
[70220,"M: professional, scientific & technical ","Business and other management consultancy activities","AeroSpace Cornwall Team to verify eligibility"]
[70221,"M: professional, scientific & technical ","Financial management","AeroSpace Cornwall Team to verify eligibility"]
[70229,"M: professional, scientific & technical ","Management consultancy activities (other than financial management)","AeroSpace Cornwall Team to verify eligibility"]
[71110,"M: professional, scientific & technical ","Architectural activities","AeroSpace Cornwall Team to verify eligibility"]
[71111,"M: professional, scientific & technical ","Architectural activities","AeroSpace Cornwall Team to verify eligibility"]
[71112,"M: professional, scientific & technical ","Urban planning and landscape architectural activities","Proceed to the next question"]
[71120,"M: professional, scientific & technical ","Engineering activities and related technical consultancy","Proceed to the next question"]
[71121,"M: professional, scientific & technical ","Engineering design activities for industrial process and production","Proceed to the next question"]
[71122,"M: professional, scientific & technical ","Engineering related scientific and technical consulting activities","Proceed to the next question"]
[71129,"M: professional, scientific & technical ","Other engineering activities (not including engineering design for industrial process and production or engineering related scientific and technical consulting activities)","Proceed to the next question"]
[71200,"M: professional, scientific & technical ","Technical testing and analysis","Proceed to the next question"]
[72110,"M: professional, scientific & technical ","Research and experimental development on biotechnology","Proceed to the next question"]
[72190,"M: professional, scientific & technical ","Other research and experimental development on natural sciences and engineering","Proceed to the next question"]
[72200,"M: professional, scientific & technical ","Research and experimental development on social sciences and humanities","Proceed to the next question"]
[73110,"M: professional, scientific & technical ","Advertising agencies","Proceed to the next question"]
[73120,"M: professional, scientific & technical ","Media representation","Proceed to the next question"]
[73200,"M: professional, scientific & technical ","Market research and public opinion polling","Proceed to the next question"]
[74100,"M: professional, scientific & technical ","Specialised design activities","Proceed to the next question"]
[74200,"M: professional, scientific & technical ","Photographic activities","Proceed to the next question"]
[74201,"M: professional, scientific & technical ","Portrait photographic activities","Proceed to the next question"]
[74202,"M: professional, scientific & technical ","Other specialist photography (not including portrait photography)","Proceed to the next question"]
[74203,"M: professional, scientific & technical ","Film processing","Proceed to the next question"]
[74209,"M: professional, scientific & technical ","Other photographic activities (not including portrait and other specialist photography and film processing) nec","Proceed to the next question"]
[74300,"M: professional, scientific & technical ","Translation and interpretation activities","Proceed to the next question"]
[74900,"M: professional, scientific & technical ","Other professional, scientific and technical activities nec","Proceed to the next question"]
[74901,"M: professional, scientific & technical ","Environmental consulting activities","Proceed to the next question"]
[74902,"M: professional, scientific & technical ","Quantity surveying activities","Proceed to the next question"]
[74909,"M: professional, scientific & technical ","Other professional, scientific and technical activities (not including environmental consultancy or quantity surveying) nec","Proceed to the next question"]
[75000,"M: professional, scientific & technical ","Veterinary activities","Proceed to the next question"]
[77110,"N: admin & support","Renting and leasing of cars and light motor vehicles","Proceed to the next question"]
[77120,"N: admin & support","Renting and leasing of trucks","Proceed to the next question"]
[77210,"N: admin & support","Renting and leasing of recreational and sports goods","Proceed to the next question"]
[77220,"N: admin & support","Renting of video tapes and disks","Proceed to the next question"]
[77290,"N: admin & support","Renting and leasing of other personal and household goods","Proceed to the next question"]
[77291,"N: admin & support","Renting and leasing of media entertainment equipment","Proceed to the next question"]
[77299,"N: admin & support","Renting and leasing of other personal and household goods (other than media entertainment equipment)","Proceed to the next question"]
[77310,"N: admin & support","Renting and leasing of agricultural machinery and equipment","Proceed to the next question"]
[77320,"N: admin & support","Renting and leasing of construction and civil engineering machinery and equipment","Proceed to the next question"]
[77330,"N: admin & support","Renting and leasing of office machinery and equipment (including computers)","Proceed to the next question"]
[77340,"N: admin & support","Renting and leasing of water transport equipment","Proceed to the next question"]
[77341,"N: admin & support","Renting and leasing of passenger water transport equipment","Proceed to the next question"]
[77342,"N: admin & support","Renting and leasing of freight water transport equipment","Proceed to the next question"]
[77350,"N: admin & support","Renting and leasing of air transport equipment","Proceed to the next question"]
[77351,"N: admin & support","Renting and leasing of passenger air transport equipment","Proceed to the next question"]
[77352,"N: admin & support","Renting and leasing of freight air transport equipment","Proceed to the next question"]
[77390,"N: admin & support","Renting and leasing of other machinery, equipment and tangible goods nec","Proceed to the next question"]
[77400,"N: admin & support","Leasing of intellectual property and similar products, except copyrighted works","Proceed to the next question"]
[78100,"N: admin & support","Activities of employment placement agencies","Proceed to the next question"]
[78101,"N: admin & support","Motion picture, television and other theatrical casting","Proceed to the next question"]
[78109,"N: admin & support","Activities of employment placement agencies (other than motion picture, television and other theatrical casting) nec","Proceed to the next question"]
[78200,"N: admin & support","Temporary employment agency activities","Proceed to the next question"]
[78300,"N: admin & support","Other human resources provision","Proceed to the next question"]
[79110,"N: admin & support","Travel agency activities","Proceed to the next question"]
[79120,"N: admin & support","Tour operator activities","Proceed to the next question"]
[79900,"N: admin & support","Other reservation service and related activities","Proceed to the next question"]
[79901,"N: admin & support","Activities of tourist guides","Proceed to the next question"]
[79909,"N: admin & support","Other reservation service and related activities (not including activities of tourist guides)","Proceed to the next question"]
[80100,"N: admin & support","Private security activities","Proceed to the next question"]
[80200,"N: admin & support","Security systems service activities","Proceed to the next question"]
[80300,"N: admin & support","Investigation activities","Proceed to the next question"]
[81100,"N: admin & support","Combined facilities support activities","Proceed to the next question"]
[81210,"N: admin & support","General cleaning of buildings","Proceed to the next question"]
[81220,"N: admin & support","Other building and industrial cleaning activities","Proceed to the next question"]
[81221,"N: admin & support","Window cleaning services","Proceed to the next question"]
[81222,"N: admin & support","Specialised cleaning services","Proceed to the next question"]
[81223,"N: admin & support","Furnace and chimney cleaning services","Proceed to the next question"]
[81229,"N: admin & support","Building and industrial cleaning activities (other than window cleaning, specialised cleaning and furnace and chimney cleaning services) nec","Proceed to the next question"]
[81290,"N: admin & support","Other cleaning activities","Proceed to the next question"]
[81291,"N: admin & support","Disinfecting and extermination services","Proceed to the next question"]
[81299,"N: admin & support","Cleaning services (other than disinfecting and extermination services) nec","Proceed to the next question"]
[81300,"N: admin & support","Landscape service activities","Proceed to the next question"]
[82110,"N: admin & support","Combined office administrative service activities","Proceed to the next question"]
[82190,"N: admin & support","Photocopying, document preparation and other specialised office support activities","Proceed to the next question"]
[82200,"N: admin & support","Activities of call centres","Proceed to the next question"]
[82300,"N: admin & support","Organisation of conventions and trade shows","Proceed to the next question"]
[82301,"N: admin & support","Activities of exhibition and fair organizers","Proceed to the next question"]
[82302,"N: admin & support","Activities of conference organizers","Proceed to the next question"]
[82910,"N: admin & support","Activities of collection agencies and credit bureaus","Proceed to the next question"]
[82911,"N: admin & support","Activities of collection agencies","Proceed to the next question"]
[82912,"N: admin & support","Activities of credit bureaus","Proceed to the next question"]
[82920,"N: admin & support","Packaging activities","Proceed to the next question"]
[82990,"N: admin & support","Other business support service activities nec","Proceed to the next question"]
[84110,"O: public admin & defence","General public administration activities","AeroSpace Cornwall Team to verify eligibility"]
[84120,"O: public admin & defence","Regulation of the activities of providing health care, education, cultural services and other social services, excluding social security","AeroSpace Cornwall Team to verify eligibility"]
[84130,"O: public admin & defence","Regulation of and contribution to more efficient operation of businesses","AeroSpace Cornwall Team to verify eligibility"]
[84210,"O: public admin & defence","Foreign affairs","AeroSpace Cornwall Team to verify eligibility"]
[84220,"O: public admin & defence","Defence activities","AeroSpace Cornwall Team to verify eligibility"]
[84230,"O: public admin & defence","Justice and judicial activities","AeroSpace Cornwall Team to verify eligibility"]
[84240,"AeroSpace Cornwall Team to verify eligibility"]
[84250,"AeroSpace Cornwall Team to verify eligibility"]
[84300,"AeroSpace Cornwall Team to verify eligibility"]
[85100,"AeroSpace Cornwall Team to verify eligibility"]
[85200,"AeroSpace Cornwall Team to verify eligibility"]
[85310,"AeroSpace Cornwall Team to verify eligibility"]
[85320,"AeroSpace Cornwall Team to verify eligibility"]
[85410,"AeroSpace Cornwall Team to verify eligibility"]
[85420,"AeroSpace Cornwall Team to verify eligibility"]
[85421,"AeroSpace Cornwall Team to verify eligibility"]
[85422,"AeroSpace Cornwall Team to verify eligibility"]
[85510,"AeroSpace Cornwall Team to verify eligibility"]
[85520,"AeroSpace Cornwall Team to verify eligibility"]
[85530,"AeroSpace Cornwall Team to verify eligibility"]
[85590,"AeroSpace Cornwall Team to verify eligibility"]
[85600,"AeroSpace Cornwall Team to verify eligibility"]
[86100,"AeroSpace Cornwall Team to verify eligibility"]
[86101,"AeroSpace Cornwall Team to verify eligibility"]
[86102,"AeroSpace Cornwall Team to verify eligibility"]
[86210,"AeroSpace Cornwall Team to verify eligibility"]
[86220,"AeroSpace Cornwall Team to verify eligibility"]
[86230,"AeroSpace Cornwall Team to verify eligibility"]
[86900,"AeroSpace Cornwall Team to verify eligibility"]
[87100,"AeroSpace Cornwall Team to verify eligibility"]
[87200,"AeroSpace Cornwall Team to verify eligibility"]
[87300,"AeroSpace Cornwall Team to verify eligibility"]
[87900,"AeroSpace Cornwall Team to verify eligibility"]
[88100,"AeroSpace Cornwall Team to verify eligibility"]
[88910,"AeroSpace Cornwall Team to verify eligibility"]
[88990,"AeroSpace Cornwall Team to verify eligibility"]
[90010,"AeroSpace Cornwall Team to verify eligibility"]
[90020,"AeroSpace Cornwall Team to verify eligibility"]
[90030,"AeroSpace Cornwall Team to verify eligibility"]
[90040,"AeroSpace Cornwall Team to verify eligibility"]
[91010,"AeroSpace Cornwall Team to verify eligibility"]
[91011,"AeroSpace Cornwall Team to verify eligibility"]
[91012,"AeroSpace Cornwall Team to verify eligibility"]
[91020,"AeroSpace Cornwall Team to verify eligibility"]
[91030,"AeroSpace Cornwall Team to verify eligibility"]
[91040,"AeroSpace Cornwall Team to verify eligibility"]
[92000,"AeroSpace Cornwall Team to verify eligibility"]
[93110,"AeroSpace Cornwall Team to verify eligibility"]
[93120,"AeroSpace Cornwall Team to verify eligibility"]
[93130,"AeroSpace Cornwall Team to verify eligibility"]
[93190,"AeroSpace Cornwall Team to verify eligibility"]
[93191,"AeroSpace Cornwall Team to verify eligibility"]
[93199,"AeroSpace Cornwall Team to verify eligibility"]
[93210,"AeroSpace Cornwall Team to verify eligibility"]
[93290,"AeroSpace Cornwall Team to verify eligibility"]
[94110,"AeroSpace Cornwall Team to verify eligibility"]
[94120,"AeroSpace Cornwall Team to verify eligibility"]
[94200,"AeroSpace Cornwall Team to verify eligibility"]
[94910,"AeroSpace Cornwall Team to verify eligibility"]
[94920,"AeroSpace Cornwall Team to verify eligibility"]
[94990,"AeroSpace Cornwall Team to verify eligibility"]
[95110,"Proceed to the next question"]
[95120,"Proceed to the next question"]
[95210,"Proceed to the next question"]
[95220,"Proceed to the next question"]
[95230,"Proceed to the next question"]
[95240,"Proceed to the next question"]
[95250,"Proceed to the next question"]
[95290,"Proceed to the next question"]
[96010,"Proceed to the next question"]
[96020,"Proceed to the next question"]
[96030,"Proceed to the next question"]
[96040,"Proceed to the next question"]
[96090,"Proceed to the next question"]
[97000,"AeroSpace Cornwall Team to verify eligibility"]
[98100,"AeroSpace Cornwall Team to verify eligibility"]
[98200,"AeroSpace Cornwall Team to verify eligibility"]
[99000,"AeroSpace Cornwall Team to verify eligibility"]

{"sheet":"Sheet1","index":5,"n_rows":381,"n_cols":1,"rows_kept":381,"cut":false,"hidden":true,"merged":[]}
["Please Select"]
["Previous AeroSpace Cornwall beneficiary"]
["Web Search"]
["SocialMedia"]
["Referral (please provide the name of the organisation in the \"Other\" response below"]
["Other (please provide details below)"]
[]
["Please Select"]
["A: Agriculture, forestry, fishing Aquaculture: contact the AeroSpace Cornwall Team before completing any further questions"]
["B: Mining & quarrying: proceed to the next question"]
["C: Manufacturing (but not synthetics,textiles and clothing): proceed to the next question"]
["D: Environmental/Renewable Technology/Low carbon: proceed to the next question"]
["E: Water; sewerage, waste & remediation: proceed to the next question"]
["F: construction(not house building): proceed to the next question"]
["G:Wholesale: proceed to the next question"]
["H: Distribution/logistics: proceed to the next question"]
["I: Food and Drink: proceed to the next question"]
["J: ICT/Creative media: proceed to the next question"]
["K:Business services: proceed to the next question"]
["L: Real estate: contact the AeroSpace Cornwall Team before completing any further questions"]
["M: Professional, scientific & technical: proceed to the next question"]
["N: Admin & support: proceed to the next question"]
["O: Public admin & defence: contact the AeroSpace Cornwall Team before completing any further questions"]
["P: Education: contact the AeroSpace Cornwall Team before completing any further questions"]
["Q:Medical/Biotech: proceed to the next question"]
["R: Tourism, arts, entertainment & recreation: contact the AeroSpace Cornwall Team before completing any further questions"]
["S: other service: contact the AeroSpace Cornwall Team before completing any further questions"]
["T:  households as employers etc: contact the AeroSpace Cornwall  Team before completing any further questions"]
["U: extraterritorial organisations & bodies: contact the AeroSpace Cornwall Team before completing any further questions"]
["V:Retail: contact the AeroSpace Cornwall Team before completing any further questions"]
["W:Other: contact the AeroSpace Cornwall Team before completing any further questions"]
[]
[]
[]
[]
[]
[]
[]
[]
[]
[]
[]
[]
[]
[]
[]
[]
[]
[]
[]
[]
[]
[]
["Please Select"]
["Sole Trader"]
["Partnership"]
["Registered Charity"]
["Company limited by guarantee"]
["Company limited by shares; see below"]
["Social Enterprise"]
["Community Interest Company"]
["Other (specify below)"]
[]
["Please Select"]
["0-6 months"]
["6 months - 1 Year"]
["1 -3 Years"]
["3-5 Years"]
["5 Years or more"]
[]
["Please Select"]
["NA"]
["£0 - £50,000"]
["£50,000  - £100,000"]
["£100,000 - £250,000"]
["£250,000 - £500,000"]
["£500,000 - £1M"]
["£1M - £5M"]
[">£5M"]
[]
["Please Select"]
[">£10,000"]
["£10,000 - £25,000"]
["£25,000 - £50,000"]
["£50,000 - £75,000"]
["£75,000 - £100,000"]
[">£1000,000"]
[]
["Please Select"]
["Cash at bank"]
["Bank loan"]
["Bank Overdraft "]
["Other please detail below"]
[]
[]
[]
[]
[]
[]
[]
[]
[]
[]
[]
[]
[]
["Select option"]
["Sole Trader"]
["Partnership"]
["Registered Charity"]
["Company limited by guarantee"]
["Company limited by shares; see below"]
["Social Enterprise"]
["Community Interest Company"]
["Other (specify below)"]
[]
["Select option"]
["Less than 6 months"]
["6 months to <1 Year"]
["1 Year to <4 Years"]
["4 Years to <5 Years"]
["5 Years or more"]
[]
[]
["Select option"]
["Yes"]
["No"]
[]
["Select option"]
["Access to new markets"]
["Capital expenditure"]
["Consultancy related to growth ambitions"]
["Environmental measures"]
["Feasibility studies"]
["Improving systems and processes"]
["Interim management"]
["Technology and product design"]
["Innovation"]
["Inward investment"]
["Other. Please detail"]
[]
["Select option"]
["The project would not take place"]
["The project might take place but over a longer period"]
["The project might proceed but at a lower level of quality and impact"]
["We would still have sufficient funds to proceed"]
[]
[]
["Select option"]
["Labour cost"]
["Material cost"]
["Marketing/brand awareness"]
["Intellectual property/R&D"]
["Location"]
["Service"]
["Distribution channels"]
["Unique capability"]
["Production/process methods"]
["Quality"]
["First to market"]
[]
["Select option"]
["Beneficial"]
["Neutral"]
["Detrimental"]
[]
["Select option"]
["Jan"]
["Feb"]
["Mar"]
["Apr"]
["May"]
["Jun"]
["Jul"]
["Aug"]
["Sep"]
["Oct"]
["Nov"]
["Dec"]
[]
[]
[]
[]
["Select option"]
["Approved"]
["In-place"]
["Declined"]
[]
["Capital"]
["Revenue"]
["Both capital and revenue"]
["Article 14"]
["Article 25"]
["Article 28"]
["de minimis"]
["Select option"]
["Static - company has no potential for growth"]
["Static - company has potential for growth but the process for growth has not been identified"]
["Static - company has potential for growth but the process for growth has been identified"]
["Growth -company is currently growing "]
[]
["Select option"]
["Turnover"]
["Profitability"]
["Employees"]
["Turnover and profitability"]
["Turnover and employees"]
["Profitability and employees"]
["Turnover, profitability and employees"]
[]
["Select option"]
["No - company has no potential for growth"]
["Yes - company expects year on year growth"]
[]
["Select option"]
["YES"]
["NO"]
["NA"]
[]
[]
["Select option"]
["Entry"]
["Level 1"]
["Level 2"]
["Level 3"]
["Level 4"]
["Level 5"]
["Level 6"]
["Level 7"]
["Level 8"]
["Select option"]
["White English"]
["White Welsh"]
["White Scottish"]
["White Cornish"]
["White Irish"]
["Gypsy/Roma"]
["Traveller of Irish Heritage"]
["White Other"]
["Mixed White and Black Caribbean"]
["Mixed White and Black African"]
["Mixed White and Asian"]
["Mixed Cornish"]
["Mixed Other"]
["Asian Indian"]
["Asian Pakistani"]
["Asian Bangladeshi"]
["Asian Chinese"]
["Asian Cornish"]
["Asian Other"]
["Black Caribbean"]
["Black African"]
["Black Cornish"]
["Black other"]
["Other"]
["Prefer not to say"]
[]
[]
["Select option"]
["Not Applicable"]
["Yes - Provide details below"]
["No"]
["Select option"]
["Cost over-run"]
["Time over-run"]
["Loss of key staff"]
["Breakdown in supplier relationship"]
["Product/service failure"]
["Critical event"]
["Select option"]
["H"]
["M"]
["L"]
["Select option"]
["Buildings and land use"]
["Community participation"]
["Employment practices"]
["Energy"]
["Environmental management"]
["Pollution"]
["Purchasing and the local economy"]
["Transport"]
["Waste and resource management"]
["Water"]
["Other"]
["Select option"]
["Beneficial"]
["Minimal Detrimental "]
["Significant Detrimental "]
["Select option"]
["Proactive approach to vulnerable customers"]
["Respect and trust in dealing with customers and suppliers"]
["Eliminate discrimination in the provision of our goods/services"]
["Improve access to our goods/services"]
["Improve access to our business premises"]
["Improve access to our business website"]
["Accurate and appropriate recording of customer's data"]
["Appropriate data sharing"]
["Willingness to help resolve all customers issues"]
["Select option"]
["Administration"]
["Sales"]
["Marketing"]
["Customer Service"]
["Service Delivery"]
["Finance"]
["IT"]
["Logistics"]
["Production"]
["Processing"]
["Technical"]
["Professional"]
[]
["Select option"]
["Less than £16999"]
["£17000-£19999"]
["£20000-£24999"]
["£25000-£37999"]
["£38000-£51999"]
["Greater than £52000"]
[]
["Select option"]
["Permanent"]
["Fixed Term"]
[]
["Select Option"]
["2019-08-01"]
["2019-09-01"]
["2019-10-01"]
["2019-11-01"]
["2019-12-01"]
["2020-01-01"]
["2020-02-01"]
["2020-03-01"]
["2020-04-01"]
["2020-05-01"]
["2020-06-01"]
["2020-07-01"]
["2020-08-01"]
["2020-09-01"]
["2020-10-01"]
["2020-11-01"]
["2020-12-01"]
["2021-01-01"]
["2021-02-01"]
["2021-03-01"]
["2021-04-01"]
["2021-05-01"]
["2021-06-01"]
["2021-07-01"]
["2021-08-01"]
["2021-09-01"]
["2021-10-01"]
["2021-11-01"]
["2021-12-01"]
["2022-01-01"]
["2022-02-01"]
["2022-03-01"]
["2022-04-01"]
["2022-05-01"]
["2022-06-01"]
["2022-07-01"]
["2022-08-01"]
["2022-09-01"]
["2022-10-01"]
["2022-11-01"]
["2022-12-01"]
[]
[]
["Select option"]
["As per correspondence address"]
["Different to correspondence address, please detail below"]
[]
["Select Option"]
["Start up: figures to date"]
[2018]
[2019]
[2020]
[2021]
[2022]
[2023]